Workbook

Sheet Step 1 - Fungicide Planner
A17: Design Your Own Program Fungicide Planner
A18: BASF Brand Name | B18: Case Size | C18: Article No. | D18: Use Area | E18: Acres | F18: Application Rate | G18: Number of Applications | H18: Cases of Product Needed | I18: Cost per Acre (before rebate) | J18: Cost per Acre (after rebate*)
K19: Article | L19: Rate | M19: Coverage | N19: Cases
A20: Insignia® SC Intrinsic® | B20: =VLOOKUP(C20,'Article Reference'!$A$3:$C$7,3,FALSE) -> 4 x 30.5 fl oz | C20: 59014134 | E20: 0 | F20: 30.5 oz | G20: 0 | H20: =IF(M20=0,0,(G20*E20)/M20) -> 0 | I20: =IF(G20*E20=0,0,(ROUND(H20,2)*VLOOKUP(K20,'Step 2 - Order Planner'!$C$26:$D$53,2,FALSE))/(G20*E20)) -> 0 | J20: =IF(G20*E20=0,0,((VLOOKUP(K20,'Step 2 - Order Planner'!$C$26:$D$53,2,FALSE)*(1-'Step 2 - Order Planner'!$B$20))*ROUND(H20,2))/(G20*E20)) -> 0 | K20: 59014134 | L20: 7 | M20: =IF(L20=0,0,VLOOKUP(K20,'Coverage Reference'!$B$4:$H$20,L20,FALSE)) -> 4 | N20: =H20 -> 0 | O20: Lawn
B21: =VLOOKUP(C21,'Article Reference'!$A$3:$C$7,3,FALSE) -> 2 x 2.5 gal | C21: 59014135 | E21: 0 | F21: 30.5 oz | G21: 0 | H21: 0 | I21: =IF(G21*E21=0,0,(ROUND(H21,2)*VLOOKUP(K21,'Step 2 - Order Planner'!$C$26:$D$53,2,FALSE))/(G21*E21)) -> 0 | J21: =IF(G21*E21=0,0,((VLOOKUP(K21,'Step 2 - Order Planner'!$C$26:$D$53,2,FALSE)*(1-'Step 2 - Order Planner'!$B$20))*ROUND(H21,2))/(G21*E21)) -> 0 | K21: 59014135 | L21: 7 | M21: =IF(L21=0,0,VLOOKUP(K21,'Coverage Reference'!$B$4:$H$20,L21,FALSE)) -> 21 | N21: 0
A22: Lexicon® Intrinsic® | B22: =VLOOKUP(C22,'Article Reference'!$A$3:$C$7,3,FALSE) -> 4 x 21 oz | C22: 59027998 | E22: 0 | F22: 21.0 oz | G22: 0 | H22: 0 | I22: =IF(G22*E22=0,0,(ROUND(H22,2)*VLOOKUP(K22,'Step 2 - Order Planner'!$C$26:$D$53,2,FALSE))/(G22*E22)) -> 0 | J22: =IF(G22*E22=0,0,((VLOOKUP(K22,'Step 2 - Order Planner'!$C$26:$D$53,2,FALSE)*(1-'Step 2 - Order Planner'!$B$20))*ROUND(H22,2))/(G22*E22)) -> 0 | K22: 59027998 | L22: 7 | M22: =IF(L22=0,0,VLOOKUP(K22,'Coverage Reference'!$B$4:$H$20,L22,FALSE)) -> 4 | N22: 0
A23: Xzemplar® | B23: =VLOOKUP(C23,'Article Reference'!$A$3:$C$7,3,FALSE) -> 4 x 11.4 oz | C23: 59014120 | E23: 0 | F23: Select Rate | G23: 0 | H23: 0 | I23: =IF(G23*E23=0,0,(ROUND(H23,2)*VLOOKUP(K23,'Step 2 - Order Planner'!$C$26:$D$53,2,FALSE))/(G23*E23)) -> 0 | J23: =IF(G23*E23=0,0,((VLOOKUP(K23,'Step 2 - Order Planner'!$C$26:$D$53,2,FALSE)*(1-'Step 2 - Order Planner'!$B$20))*ROUND(H23,2))/(G23*E23)) -> 0 | K23: 59014120 | L23: =IF(F23="9.135 oz",6,IF(F23="11.31 oz",7,0)) -> 0 | M23: =IF(L23=0,0,VLOOKUP(K23,'Coverage Reference'!$B$4:$H$20,L23,FALSE)) -> 0 | N23: 0
B24: =VLOOKUP(C24,'Article Reference'!$A$3:$C$7,3,FALSE) -> 2 x 114 oz | C24: 59013833 | E24: 0 | F24: Select Rate | G24: 0 | H24: 0 | I24: =IF(G24*E24=0,0,(ROUND(H24,2)*VLOOKUP(K24,'Step 2 - Order Planner'!$C$26:$D$53,2,FALSE))/(G24*E24)) -> 0 | J24: =IF(G24*E24=0,0,((VLOOKUP(K24,'Step 2 - Order Planner'!$C$26:$D$53,2,FALSE)*(1-'Step 2 - Order Planner'!$B$20))*ROUND(H24,2))/(G24*E24)) -> 0 | K24: 59013833 | L24: =IF(F24="9.135 oz",6,IF(F24="11.31 oz",7,0)) -> 0 | M24: =IF(L24=0,0,VLOOKUP(K24,'Coverage Reference'!$B$4:$H$20,L24,FALSE)) -> 0 | N24: 0
A26: * Cost per Acre after rebate is estimated based on orders in "Step 2 - Order Planner" tab
A27: BASF has developed this calculator using formulas that approximate the rebate amount under the 2025 Early Order Program. The calculator is being shared with you for information purposes only and for your private use in preparing your own calculations. While every effort has been made to ensure the accuracy and reliability of the information and formulas, no guarantee is given nor responsibility taken by BASF for the accuracy of the calculator or the applicability to your particular circumstances. BASF PROVIDES THIS CALCULATOR AND ANY RESULT THEREFROM AS IS WITH ALL FAULTS AND WITH NO WARRANTY WHATSOEVER, EITHER EXPRESS OR IMPLIED, INCLUDING ANY WARRANTIES OF MERCHANTABILITY AND FITNESS FOR PARTICULAR PURPOSE. YOU ASSUME ANY AND ALL RISKS IN USING THE CALCULATOR AND RELYING ON THE INFORMATION CONTAINED HEREIN. IN NO CIRCUMSTANCES SHALL BASF BE LIABLE FOR ANY DAMAGES WHATSOEVER, INCLUDING BUT NOT LIMITED TO LOSS OF PROFIT, LOSS OF BUSINESS, LOSS OF SAVINGS, OR CONSEQUENTIAL DAMAGES, EVEN IF BASF HAS BEEN NOTIFIED AS SUCH.

Sheet Step 2 - Order Planner
P15: Upgrade Your Fungicide Rebate
A16: EOP Rebate Calculator | P16: =IF('Range Reference'!S17=0,"Buy 3 fungicide brands to qualify",IF('Range Reference'!S17=1,"Buy 2 more fungicide brands to qualify",IF('Range Reference'!S17=2,"Buy 1 more fungicide brand to qualify","Qualified"))) -> Buy 3 fungicide brands to qualify
A17: Agency Fungicide Rebate Program Locked | B17: =IF(AND(G31>=3000,'Range Reference'!Q17>=1),"October Rebate Locked",IF(AND(J31>=3000,'Range Reference'!S17>=1),"Nov-Dec Rebate Locked","Rebate Level Not Achieved")) -> Rebate Level Not Achieved | D17: Fungicide Total Purchases | H17: ='Article Reference'!G8 -> 0
A18: 3 or More Fungicide Brands | B18: =IF(AND(H17>=3000,'Range Reference'!S17>=3),"Design Your Own Program Rebate","Need to buy "&3-'Range Reference'!S17&" More Brand(s)") -> Need to buy 3 More Brand(s) | D18: Agency Fungicide Rebate | H18: =IF(AND(B20=0,B22>0),H17*B22,(B20*H17)) -> 0 | P18: Spend for Next Fungicide Level | Q18: Next Level
D19: Across-the-Lawn-Solutions Purchases | H19: ='Article Reference'!G43 -> 0
A20: Agency Fungicide Rebate | B20: =IF(AND('Range Reference'!S17<3,G31>=3000),0.08,IF(AND('Range Reference'!S17<3,I31>=3000),0.03,'Range Reference'!G16)) -> 0 | D20: Across-the-Lawn-Solutions Rebate | H20: =(H19*B22) -> 0 | P20: =IF(P16<>"Qualified","",HLOOKUP(H17,'Range Reference'!$H$10:$H$16,7,FALSE)) ->  | Q20: =IF(ISNA(IF(P20=0,"Max",VLOOKUP(P20,'Range Reference'!H11:I15,2,FALSE)))=TRUE,"",IF(P20=0,"Max",VLOOKUP(P20,'Range Reference'!H11:I15,2,FALSE))) -> 
D21: TOTAL EOP PURCHASE | H21: =H17+H19 -> 0
A22: Across-The-Lawn Rebate | B22: =IF(AND('Range Reference'!S17>=3,H17>=20000),0.12,'Range Reference'!G6) -> 0 | D22: Total Effective Rebate on All Purchases | H22: =IF(H21=0,0,H23/H21) -> 0 | P22: Spend for Next Across the Lawn Level | Q22: Next Level
D23: TOTAL EOP Rebate | H23: =(H18+H20) -> 0
A25: Qualifying Fungicide EOP Products | B25: Package | C25: Article No. | D25: Redemption Value | E25: Cases Needed (rounded up to partial cases) | F25: Oct Order (Cases) | G25: Oct Sales | H25: Nov-Dec Order (Cases) | I25: Nov-Dec Sales | J25: Acres Low | K25: Acres Mid | L25: Acres High | M25: roundup | N25: ceiling | P25: =IF(Q20="Max",0,HLOOKUP(H19,'Range Reference'!$H$19:$H$23,5,FALSE)) -> 3000 | Q25: =IF(P25=0,"Max",VLOOKUP(P25,'Range Reference'!H20:I22,2,FALSE)) -> 0.04
A26: =VLOOKUP($C26,'Article Reference'!$A$3:$C$29,2,FALSE) -> Insignia® SC Intrinsic® brand fungicide | B26: =VLOOKUP($C26,'Article Reference'!$A$3:$C$29,3,FALSE) -> 4 x 30.5 fl oz | C26: 59014134 | D26: =VLOOKUP($C26,'Article Reference'!$A$3:$E$7,5,FALSE) -> 2305.8 | E26: =CEILING(ROUNDUP(IF(ISNA(VLOOKUP(C26,'Step 1 - Fungicide Planner'!$K$20:$N$24,4,FALSE))=TRUE,"",VLOOKUP(C26,'Step 1 - Fungicide Planner'!$K$20:$N$24,4,FALSE)),M26),N26) -> 0 | F26: 0 | G26: =D26*F26 -> 0 | H26: 0 | I26: =H26*D26 -> 0 | J26: =IF(ISNA(VLOOKUP($C26,'Coverage Reference'!$B$4:$H$20,4,FALSE))=TRUE,0,VLOOKUP($C26,'Coverage Reference'!$B$4:$H$20,4,FALSE)*(F26+H26)) -> 0 | K26: =IF(ISNA(VLOOKUP($C26,'Coverage Reference'!$B$4:$H$20,5,FALSE))=TRUE,0,VLOOKUP($C26,'Coverage Reference'!$B$4:$H$20,5,FALSE)*(F26+H26)) -> 0 | L26: =IF(ISNA(VLOOKUP($C26,'Coverage Reference'!$B$4:$H$20,6,FALSE))=TRUE,0,VLOOKUP($C26,'Coverage Reference'!$B$4:$H$20,6,FALSE)*(F26+H26)) -> 0 | M26: 1 | N26: =1/4 -> 0.25
A27: =VLOOKUP($C27,'Article Reference'!$A$3:$C$29,2,FALSE) -> Insignia® SC Intrinsic® brand fungicide | B27: =VLOOKUP($C27,'Article Reference'!$A$3:$C$29,3,FALSE) -> 2 x 2.5 gal | C27: 59014135 | D27: =VLOOKUP($C27,'Article Reference'!$A$3:$E$7,5,FALSE) -> 7535.4 | E27: =CEILING(ROUNDUP(IF(ISNA(VLOOKUP(C27,'Step 1 - Fungicide Planner'!$K$20:$N$24,4,FALSE))=TRUE,"",VLOOKUP(C27,'Step 1 - Fungicide Planner'!$K$20:$N$24,4,FALSE)),M27),N27) -> 0 | F27: 0 | G27: 0 | H27: 0 | I27: 0 | J27: =IF(ISNA(VLOOKUP($C27,'Coverage Reference'!$B$4:$H$20,4,FALSE))=TRUE,0,VLOOKUP($C27,'Coverage Reference'!$B$4:$H$20,4,FALSE)*(F27+H27)) -> 0 | K27: =IF(ISNA(VLOOKUP($C27,'Coverage Reference'!$B$4:$H$20,5,FALSE))=TRUE,0,VLOOKUP($C27,'Coverage Reference'!$B$4:$H$20,5,FALSE)*(F27+H27)) -> 0 | L27: =IF(ISNA(VLOOKUP($C27,'Coverage Reference'!$B$4:$H$20,6,FALSE))=TRUE,0,VLOOKUP($C27,'Coverage Reference'!$B$4:$H$20,6,FALSE)*(F27+H27)) -> 0 | M27: 2 | N27: =0.5 -> 0.5
A28: =VLOOKUP($C28,'Article Reference'!$A$3:$C$29,2,FALSE) -> Lexicon® Intrinsic® brand fungicide | B28: =VLOOKUP($C28,'Article Reference'!$A$3:$C$29,3,FALSE) -> 4 x 21 oz | C28: 59027998 | D28: =VLOOKUP($C28,'Article Reference'!$A$3:$E$7,5,FALSE) -> 2531.76 | E28: =CEILING(ROUNDUP(IF(ISNA(VLOOKUP(C28,'Step 1 - Fungicide Planner'!$K$20:$N$24,4,FALSE))=TRUE,"",VLOOKUP(C28,'Step 1 - Fungicide Planner'!$K$20:$N$24,4,FALSE)),M28),N28) -> 0 | F28: 0 | G28: 0 | H28: 0 | I28: 0 | J28: =IF(ISNA(VLOOKUP($C28,'Coverage Reference'!$B$4:$H$20,4,FALSE))=TRUE,0,VLOOKUP($C28,'Coverage Reference'!$B$4:$H$20,4,FALSE)*(F28+H28)) -> 0 | K28: =IF(ISNA(VLOOKUP($C28,'Coverage Reference'!$B$4:$H$20,5,FALSE))=TRUE,0,VLOOKUP($C28,'Coverage Reference'!$B$4:$H$20,5,FALSE)*(F28+H28)) -> 0 | L28: =IF(ISNA(VLOOKUP($C28,'Coverage Reference'!$B$4:$H$20,6,FALSE))=TRUE,0,VLOOKUP($C28,'Coverage Reference'!$B$4:$H$20,6,FALSE)*(F28+H28)) -> 0 | M28: 2 | N28: =0.25 -> 0.25
A29: =VLOOKUP($C29,'Article Reference'!$A$3:$C$29,2,FALSE) -> Xzemplar® fungicide | B29: =VLOOKUP($C29,'Article Reference'!$A$3:$C$29,3,FALSE) -> 2 x 114 oz | C29: 59013833 | D29: =VLOOKUP($C29,'Article Reference'!$A$3:$E$7,5,FALSE) -> 3611.52 | E29: =CEILING(ROUNDUP(IF(ISNA(VLOOKUP(C29,'Step 1 - Fungicide Planner'!$K$20:$N$24,4,FALSE))=TRUE,"",VLOOKUP(C29,'Step 1 - Fungicide Planner'!$K$20:$N$24,4,FALSE)),M29),N29) -> 0 | F29: 0 | G29: 0 | H29: 0 | I29: 0 | J29: =IF(ISNA(VLOOKUP($C29,'Coverage Reference'!$B$4:$H$20,4,FALSE))=TRUE,0,VLOOKUP($C29,'Coverage Reference'!$B$4:$H$20,4,FALSE)*(F29+H29)) -> 0 | K29: =IF(ISNA(VLOOKUP($C29,'Coverage Reference'!$B$4:$H$20,5,FALSE))=TRUE,0,VLOOKUP($C29,'Coverage Reference'!$B$4:$H$20,5,FALSE)*(F29+H29)) -> 0 | L29: =IF(ISNA(VLOOKUP($C29,'Coverage Reference'!$B$4:$H$20,6,FALSE))=TRUE,0,VLOOKUP($C29,'Coverage Reference'!$B$4:$H$20,6,FALSE)*(F29+H29)) -> 0 | M29: 1 | N29: 0.5
A30: =VLOOKUP($C30,'Article Reference'!$A$3:$C$29,2,FALSE) -> Xzemplar® fungicide | B30: =VLOOKUP($C30,'Article Reference'!$A$3:$C$29,3,FALSE) -> 4 x 11.4 oz | C30: 59014120 | D30: =VLOOKUP($C30,'Article Reference'!$A$3:$E$7,5,FALSE) -> 841.76 | E30: =CEILING(ROUNDUP(IF(ISNA(VLOOKUP(C30,'Step 1 - Fungicide Planner'!$K$20:$N$24,4,FALSE))=TRUE,"",VLOOKUP(C30,'Step 1 - Fungicide Planner'!$K$20:$N$24,4,FALSE)),M30),N30) -> 0 | F30: 0 | G30: =D30*F30 -> 0 | H30: 0 | I30: =H30*D30 -> 0 | J30: =IF(ISNA(VLOOKUP($C30,'Coverage Reference'!$B$4:$H$20,4,FALSE))=TRUE,0,VLOOKUP($C30,'Coverage Reference'!$B$4:$H$20,4,FALSE)*(F30+H30)) -> 0 | K30: =IF(ISNA(VLOOKUP($C30,'Coverage Reference'!$B$4:$H$20,5,FALSE))=TRUE,0,VLOOKUP($C30,'Coverage Reference'!$B$4:$H$20,5,FALSE)*(F30+H30)) -> 0 | L30: =IF(ISNA(VLOOKUP($C30,'Coverage Reference'!$B$4:$H$20,6,FALSE))=TRUE,0,VLOOKUP($C30,'Coverage Reference'!$B$4:$H$20,6,FALSE)*(F30+H30)) -> 0 | M30: 1 | N30: =0.25 -> 0.25
A31: QUALIFYING FUNGICIDE EOP SUB-TOTAL | G31: =SUM(G26:G30) -> 0 | I31: =SUM(I26:I30) -> 0 | J31: =I31+G31 -> 0
A32: Qualifying EOP Products | B32: Package | C32: Article Number | D32: Redemption Value | F32: EOP Order (Cases) | G32: EOP Sales | J32: Acres Low | K32: Acres Mid | L32: Acres High
A33: Insecticides
A34: =VLOOKUP($C34,'Article Reference'!$A$3:$D$42,2,FALSE) -> Amdro Pro Fire Ant Bait | B34: =VLOOKUP($C34,'Article Reference'!$A$3:$D$42,3,FALSE) -> 1 x 25lbs | C34: 59021451 | D34: =VLOOKUP($C34,'Article Reference'!$A$3:$E$42,5,FALSE) -> 593.75 | F34: 0 | G34: =F34*D34 -> 0 | J34: =IF(ISNA(VLOOKUP($C34,'Coverage Reference'!$B$5:$H$20,4,FALSE))=TRUE,0,VLOOKUP($C34,'Coverage Reference'!$B$5:$H$20,4,FALSE)*(F34+H34)) -> 0 | K34: =IF(ISNA(VLOOKUP($C34,'Coverage Reference'!$B$5:$H$20,5,FALSE))=TRUE,0,VLOOKUP($C34,'Coverage Reference'!$B$5:$H$20,5,FALSE)*(F34+H34)) -> 0 | L34: =IF(ISNA(VLOOKUP($C34,'Coverage Reference'!$B$5:$H$20,6,FALSE))=TRUE,0,VLOOKUP($C34,'Coverage Reference'!$B$5:$H$20,6,FALSE)*(F34+H34)) -> 0
A35: =VLOOKUP($C35,'Article Reference'!$A$3:$D$42,2,FALSE) -> Siesta® Fire Ant Bait | B35: =VLOOKUP($C35,'Article Reference'!$A$3:$D$42,3,FALSE) -> 15 lbs | C35: 59011057 | D35: =VLOOKUP($C35,'Article Reference'!$A$3:$E$42,5,FALSE) -> 289.13 | F35: 0 | G35: =F35*D35 -> 0 | J35: =IF(ISNA(VLOOKUP($C35,'Coverage Reference'!$B$5:$H$20,4,FALSE))=TRUE,0,VLOOKUP($C35,'Coverage Reference'!$B$5:$H$20,4,FALSE)*(F35+H35)) -> 0 | K35: =IF(ISNA(VLOOKUP($C35,'Coverage Reference'!$B$5:$H$20,5,FALSE))=TRUE,0,VLOOKUP($C35,'Coverage Reference'!$B$5:$H$20,5,FALSE)*(F35+H35)) -> 0 | L35: =IF(ISNA(VLOOKUP($C35,'Coverage Reference'!$B$5:$H$20,6,FALSE))=TRUE,0,VLOOKUP($C35,'Coverage Reference'!$B$5:$H$20,6,FALSE)*(F35+H35)) -> 0
A36: =VLOOKUP($C36,'Article Reference'!$A$3:$D$42,2,FALSE) -> Sultan® miticide | B36: =VLOOKUP($C36,'Article Reference'!$A$3:$D$42,3,FALSE) -> 4 x 0.125 gal | C36: 59023753 | D36: =VLOOKUP($C36,'Article Reference'!$A$3:$E$42,5,FALSE) -> 743.32 | F36: 0 | G36: 0 | J36: =IF(ISNA(VLOOKUP($C36,'Coverage Reference'!$B$5:$H$20,4,FALSE))=TRUE,0,VLOOKUP($C36,'Coverage Reference'!$B$5:$H$20,4,FALSE)*(F36+H36)) -> 0 | K36: =IF(ISNA(VLOOKUP($C36,'Coverage Reference'!$B$5:$H$20,5,FALSE))=TRUE,0,VLOOKUP($C36,'Coverage Reference'!$B$5:$H$20,5,FALSE)*(F36+H36)) -> 0 | L36: =IF(ISNA(VLOOKUP($C36,'Coverage Reference'!$B$5:$H$20,6,FALSE))=TRUE,0,VLOOKUP($C36,'Coverage Reference'!$B$5:$H$20,6,FALSE)*(F36+H36)) -> 0
A37: =VLOOKUP($C37,'Article Reference'!$A$3:$D$42,2,FALSE) -> Ventigra® insecticide | B37: =VLOOKUP($C37,'Article Reference'!$A$3:$D$42,3,FALSE) -> 4 x 20 oz | C37: 59014680 | D37: =VLOOKUP($C37,'Article Reference'!$A$3:$E$42,5,FALSE) -> 1361.6 | F37: 0 | G37: 0 | J37: =IF(ISNA(VLOOKUP($C37,'Coverage Reference'!$B$5:$H$20,4,FALSE))=TRUE,0,VLOOKUP($C37,'Coverage Reference'!$B$5:$H$20,4,FALSE)*(F37+H37)) -> 0 | K37: =IF(ISNA(VLOOKUP($C37,'Coverage Reference'!$B$5:$H$20,5,FALSE))=TRUE,0,VLOOKUP($C37,'Coverage Reference'!$B$5:$H$20,5,FALSE)*(F37+H37)) -> 0 | L37: =IF(ISNA(VLOOKUP($C37,'Coverage Reference'!$B$5:$H$20,6,FALSE))=TRUE,0,VLOOKUP($C37,'Coverage Reference'!$B$5:$H$20,6,FALSE)*(F37+H37)) -> 0
A38: Fungicides
A39: =VLOOKUP($C39,'Article Reference'!$A$3:$D$42,2,FALSE) -> Orkestra® Intrinsic® brand Fungicide | B39: =VLOOKUP($C39,'Article Reference'!$A$3:$D$42,3,FALSE) -> 4 x 16 oz | C39: 59014379 | D39: =VLOOKUP($C39,'Article Reference'!$A$3:$E$42,5,FALSE) -> 702.08 | F39: 0 | G39: 0 | J39: =IF(ISNA(VLOOKUP($C39,'Coverage Reference'!$B$5:$H$20,4,FALSE))=TRUE,0,VLOOKUP($C39,'Coverage Reference'!$B$5:$H$20,4,FALSE)*(F39+H39)) -> 0 | K39: =IF(ISNA(VLOOKUP($C39,'Coverage Reference'!$B$5:$H$20,5,FALSE))=TRUE,0,VLOOKUP($C39,'Coverage Reference'!$B$5:$H$20,5,FALSE)*(F39+H39)) -> 0 | L39: =IF(ISNA(VLOOKUP($C39,'Coverage Reference'!$B$5:$H$20,6,FALSE))=TRUE,0,VLOOKUP($C39,'Coverage Reference'!$B$5:$H$20,6,FALSE)*(F39+H39)) -> 0
A40: =VLOOKUP($C40,'Article Reference'!$A$3:$D$42,2,FALSE) -> Pageant® Intrinsic® brand Fungicide | B40: =VLOOKUP($C40,'Article Reference'!$A$3:$D$42,3,FALSE) -> 4 x 1 lb | C40: 59012349 | D40: =VLOOKUP($C40,'Article Reference'!$A$3:$E$42,5,FALSE) -> 463.4 | F40: 0 | G40: 0 | J40: =IF(ISNA(VLOOKUP($C40,'Coverage Reference'!$B$5:$H$20,4,FALSE))=TRUE,0,VLOOKUP($C40,'Coverage Reference'!$B$5:$H$20,4,FALSE)*(F40+H40)) -> 0 | K40: =IF(ISNA(VLOOKUP($C40,'Coverage Reference'!$B$5:$H$20,5,FALSE))=TRUE,0,VLOOKUP($C40,'Coverage Reference'!$B$5:$H$20,5,FALSE)*(F40+H40)) -> 0 | L40: =IF(ISNA(VLOOKUP($C40,'Coverage Reference'!$B$5:$H$20,6,FALSE))=TRUE,0,VLOOKUP($C40,'Coverage Reference'!$B$5:$H$20,6,FALSE)*(F40+H40)) -> 0
A41: =VLOOKUP($C41,'Article Reference'!$A$3:$D$42,2,FALSE) -> Pillar® G Intrinsic® brand fungicide | B41: =VLOOKUP($C41,'Article Reference'!$A$3:$D$42,3,FALSE) -> 15 lbs bag | C41: 59017959 | D41: =VLOOKUP($C41,'Article Reference'!$A$3:$E$42,5,FALSE) -> 59.63 | F41: 0 | G41: =F41*D41 -> 0 | J41: =IF(ISNA(VLOOKUP($C41,'Coverage Reference'!$B$5:$H$20,4,FALSE))=TRUE,0,VLOOKUP($C41,'Coverage Reference'!$B$5:$H$20,4,FALSE)*(F41+H41)) -> 0 | K41: =IF(ISNA(VLOOKUP($C41,'Coverage Reference'!$B$5:$H$20,5,FALSE))=TRUE,0,VLOOKUP($C41,'Coverage Reference'!$B$5:$H$20,5,FALSE)*(F41+H41)) -> 0 | L41: =IF(ISNA(VLOOKUP($C41,'Coverage Reference'!$B$5:$H$20,6,FALSE))=TRUE,0,VLOOKUP($C41,'Coverage Reference'!$B$5:$H$20,6,FALSE)*(F41+H41)) -> 0
A42: =VLOOKUP($C42,'Article Reference'!$A$3:$D$42,2,FALSE) -> Pillar® G Intrinsic® brand fungicide | B42: =VLOOKUP($C42,'Article Reference'!$A$3:$D$42,3,FALSE) -> 30 lbs bag | C42: 59012784 | D42: =VLOOKUP($C42,'Article Reference'!$A$3:$E$42,5,FALSE) -> 110.63 | F42: 0 | G42: 0 | J42: =IF(ISNA(VLOOKUP($C42,'Coverage Reference'!$B$5:$H$20,4,FALSE))=TRUE,0,VLOOKUP($C42,'Coverage Reference'!$B$5:$H$20,4,FALSE)*(F42+H42)) -> 0 | K42: =IF(ISNA(VLOOKUP($C42,'Coverage Reference'!$B$5:$H$20,5,FALSE))=TRUE,0,VLOOKUP($C42,'Coverage Reference'!$B$5:$H$20,5,FALSE)*(F42+H42)) -> 0 | L42: =IF(ISNA(VLOOKUP($C42,'Coverage Reference'!$B$5:$H$20,6,FALSE))=TRUE,0,VLOOKUP($C42,'Coverage Reference'!$B$5:$H$20,6,FALSE)*(F42+H42)) -> 0
A43: =VLOOKUP($C43,'Article Reference'!$A$3:$D$42,2,FALSE) -> Pillar® SC Intrinsic brand fungicide | B43: =VLOOKUP($C43,'Article Reference'!$A$3:$D$42,3,FALSE) -> 4 x 43.5 oz | C43: 59026395 | D43: =VLOOKUP($C43,'Article Reference'!$A$3:$E$42,5,FALSE) -> 891.75 | F43: 0 | G43: =F43*D43 -> 0
A44: Herbicides
A45: =VLOOKUP($C45,'Article Reference'!$A$3:$D$42,2,FALSE) -> Drive® XLR8 herbicide | B45: =VLOOKUP($C45,'Article Reference'!$A$3:$D$42,3,FALSE) -> 4 x 0.5 gal | C45: 59011404 | D45: =VLOOKUP($C45,'Article Reference'!$A$3:$E$42,5,FALSE) -> 228.13 | F45: 0 | G45: 0 | J45: =IF(ISNA(VLOOKUP($C45,'Coverage Reference'!$B$5:$H$20,4,FALSE))=TRUE,0,VLOOKUP($C45,'Coverage Reference'!$B$5:$H$20,4,FALSE)*(F45+H45)) -> 0 | K45: =IF(ISNA(VLOOKUP($C45,'Coverage Reference'!$B$5:$H$20,5,FALSE))=TRUE,0,VLOOKUP($C45,'Coverage Reference'!$B$5:$H$20,5,FALSE)*(F45+H45)) -> 0 | L45: =IF(ISNA(VLOOKUP($C45,'Coverage Reference'!$B$5:$H$20,6,FALSE))=TRUE,0,VLOOKUP($C45,'Coverage Reference'!$B$5:$H$20,6,FALSE)*(F45+H45)) -> 0
A46: =VLOOKUP($C46,'Article Reference'!$A$3:$D$42,2,FALSE) -> Drive® XLR8 herbicide | B46: =VLOOKUP($C46,'Article Reference'!$A$3:$D$42,3,FALSE) -> 2 x 2.5 gal | C46: 59018043 | D46: =VLOOKUP($C46,'Article Reference'!$A$3:$E$42,5,FALSE) -> 529.69 | F46: 0 | G46: =F46*D46 -> 0
A47: =VLOOKUP($C47,'Article Reference'!$A$3:$D$42,2,FALSE) -> FreeHand® 1.75G CA herbicide | B47: =VLOOKUP($C47,'Article Reference'!$A$3:$D$42,3,FALSE) -> 1 x 50 lb | C47: 59013674 | D47: =VLOOKUP($C47,'Article Reference'!$A$3:$E$42,5,FALSE) -> 116.5 | F47: 0 | G47: 0 | J47: =IF(ISNA(VLOOKUP($C47,'Coverage Reference'!$B$5:$H$20,4,FALSE))=TRUE,0,VLOOKUP($C47,'Coverage Reference'!$B$5:$H$20,4,FALSE)*(F47+H47)) -> 0 | K47: =IF(ISNA(VLOOKUP($C47,'Coverage Reference'!$B$5:$H$20,5,FALSE))=TRUE,0,VLOOKUP($C47,'Coverage Reference'!$B$5:$H$20,5,FALSE)*(F47+H47)) -> 0 | L47: =IF(ISNA(VLOOKUP($C47,'Coverage Reference'!$B$5:$H$20,6,FALSE))=TRUE,0,VLOOKUP($C47,'Coverage Reference'!$B$5:$H$20,6,FALSE)*(F47+H47)) -> 0
A48: =VLOOKUP($C48,'Article Reference'!$A$3:$D$42,2,FALSE) -> Pendulum® 2G herbicide | B48: =VLOOKUP($C48,'Article Reference'!$A$3:$D$42,3,FALSE) -> 40 lbs bag | C48: 59015072 | D48: =VLOOKUP($C48,'Article Reference'!$A$3:$E$42,5,FALSE) -> 90 | F48: 0 | G48: 0 | J48: =IF(ISNA(VLOOKUP($C48,'Coverage Reference'!$B$5:$H$20,4,FALSE))=TRUE,0,VLOOKUP($C48,'Coverage Reference'!$B$5:$H$20,4,FALSE)*(F48+H48)) -> 0 | K48: =IF(ISNA(VLOOKUP($C48,'Coverage Reference'!$B$5:$H$20,5,FALSE))=TRUE,0,VLOOKUP($C48,'Coverage Reference'!$B$5:$H$20,5,FALSE)*(F48+H48)) -> 0 | L48: =IF(ISNA(VLOOKUP($C48,'Coverage Reference'!$B$5:$H$20,6,FALSE))=TRUE,0,VLOOKUP($C48,'Coverage Reference'!$B$5:$H$20,6,FALSE)*(F48+H48)) -> 0
A49: =VLOOKUP($C49,'Article Reference'!$A$3:$D$42,2,FALSE) -> Pendulum® 2G herbicide | B49: =VLOOKUP($C49,'Article Reference'!$A$3:$D$42,3,FALSE) -> 20 lbs bag | C49: 59017972 | D49: =VLOOKUP($C49,'Article Reference'!$A$3:$E$42,5,FALSE) -> 51.25 | F49: 0 | G49: 0 | J49: =IF(ISNA(VLOOKUP($C49,'Coverage Reference'!$B$5:$H$20,4,FALSE))=TRUE,0,VLOOKUP($C49,'Coverage Reference'!$B$5:$H$20,4,FALSE)*(F49+H49)) -> 0 | K49: =IF(ISNA(VLOOKUP($C49,'Coverage Reference'!$B$5:$H$20,5,FALSE))=TRUE,0,VLOOKUP($C49,'Coverage Reference'!$B$5:$H$20,5,FALSE)*(F49+H49)) -> 0 | L49: =IF(ISNA(VLOOKUP($C49,'Coverage Reference'!$B$5:$H$20,6,FALSE))=TRUE,0,VLOOKUP($C49,'Coverage Reference'!$B$5:$H$20,6,FALSE)*(F49+H49)) -> 0
A50: =VLOOKUP($C50,'Article Reference'!$A$3:$D$42,2,FALSE) -> Pendulum® AquaCap herbicide | B50: =VLOOKUP($C50,'Article Reference'!$A$3:$D$42,3,FALSE) -> 2 x 2.5 gal | C50: 59049276 | D50: =VLOOKUP($C50,'Article Reference'!$A$3:$E$42,5,FALSE) -> 290.63 | F50: 0 | G50: =F50*D50 -> 0 | J50: =IF(ISNA(VLOOKUP($C50,'Coverage Reference'!$B$5:$H$20,4,FALSE))=TRUE,0,VLOOKUP($C50,'Coverage Reference'!$B$5:$H$20,4,FALSE)*(F50+H50)) -> 0 | K50: =IF(ISNA(VLOOKUP($C50,'Coverage Reference'!$B$5:$H$20,5,FALSE))=TRUE,0,VLOOKUP($C50,'Coverage Reference'!$B$5:$H$20,5,FALSE)*(F50+H50)) -> 0 | L50: =IF(ISNA(VLOOKUP($C50,'Coverage Reference'!$B$5:$H$20,6,FALSE))=TRUE,0,VLOOKUP($C50,'Coverage Reference'!$B$5:$H$20,6,FALSE)*(F50+H50)) -> 0
A51: =VLOOKUP($C51,'Article Reference'!$A$3:$D$42,2,FALSE) -> Pendulum® AquaCap herbicide | B51: =VLOOKUP($C51,'Article Reference'!$A$3:$D$42,3,FALSE) -> 1 x 15 gal | C51: 59011279 | D51: =VLOOKUP($C51,'Article Reference'!$A$3:$E$42,5,FALSE) -> 1061.1 | F51: 0 | G51: 0 | J51: =IF(ISNA(VLOOKUP($C51,'Coverage Reference'!$B$5:$H$20,4,FALSE))=TRUE,0,VLOOKUP($C51,'Coverage Reference'!$B$5:$H$20,4,FALSE)*(F51+H51)) -> 0 | K51: =IF(ISNA(VLOOKUP($C51,'Coverage Reference'!$B$5:$H$20,5,FALSE))=TRUE,0,VLOOKUP($C51,'Coverage Reference'!$B$5:$H$20,5,FALSE)*(F51+H51)) -> 0 | L51: =IF(ISNA(VLOOKUP($C51,'Coverage Reference'!$B$5:$H$20,6,FALSE))=TRUE,0,VLOOKUP($C51,'Coverage Reference'!$B$5:$H$20,6,FALSE)*(F51+H51)) -> 0
A52: =VLOOKUP($C52,'Article Reference'!$A$3:$D$42,2,FALSE) -> Pylex® herbicide | B52: =VLOOKUP($C52,'Article Reference'!$A$3:$D$42,3,FALSE) -> 4 x 4 oz | C52: 59018005 | D52: =VLOOKUP($C52,'Article Reference'!$A$3:$E$42,5,FALSE) -> 1509.12 | F52: 0 | G52: 0 | J52: =IF(ISNA(VLOOKUP($C52,'Coverage Reference'!$B$5:$H$20,4,FALSE))=TRUE,0,VLOOKUP($C52,'Coverage Reference'!$B$5:$H$20,4,FALSE)*(F52+H52)) -> 0 | K52: =IF(ISNA(VLOOKUP($C52,'Coverage Reference'!$B$5:$H$20,5,FALSE))=TRUE,0,VLOOKUP($C52,'Coverage Reference'!$B$5:$H$20,5,FALSE)*(F52+H52)) -> 0 | L52: =IF(ISNA(VLOOKUP($C52,'Coverage Reference'!$B$5:$H$20,6,FALSE))=TRUE,0,VLOOKUP($C52,'Coverage Reference'!$B$5:$H$20,6,FALSE)*(F52+H52)) -> 0
A53: =VLOOKUP($C53,'Article Reference'!$A$3:$D$42,2,FALSE) -> Tower® herbicide | B53: =VLOOKUP($C53,'Article Reference'!$A$3:$D$42,3,FALSE) -> 2 x 2.5 gal | C53: 59014247 | D53: =VLOOKUP($C53,'Article Reference'!$A$3:$E$42,5,FALSE) -> 2145.7 | F53: 0 | G53: 0 | J53: =IF(ISNA(VLOOKUP($C53,'Coverage Reference'!$B$5:$H$20,4,FALSE))=TRUE,0,VLOOKUP($C53,'Coverage Reference'!$B$5:$H$20,4,FALSE)*(F53+H53)) -> 0 | K53: =IF(ISNA(VLOOKUP($C53,'Coverage Reference'!$B$5:$H$20,5,FALSE))=TRUE,0,VLOOKUP($C53,'Coverage Reference'!$B$5:$H$20,5,FALSE)*(F53+H53)) -> 0 | L53: =IF(ISNA(VLOOKUP($C53,'Coverage Reference'!$B$5:$H$20,6,FALSE))=TRUE,0,VLOOKUP($C53,'Coverage Reference'!$B$5:$H$20,6,FALSE)*(F53+H53)) -> 0
A54: QUALIFYING EOP PRODUCTS SUB-TOTAL | G54: =SUM(G34:G53) -> 0 | J54: =G54 -> 0
A59: BASF has developed this calculator using formulas that approximate the rebate amount under the 2025 Early Order Program. The calculator is being shared with you for information purposes only and for your private use in preparing your own calculations. While every effort has been made to ensure the accuracy and reliability of the information and formulas, no guarantee is given nor responsibility taken by BASF for the accuracy of the calculator or the applicability to your particular circumstances. BASF PROVIDES THIS CALCULATOR AND ANY RESULT THEREFROM AS IS WITH ALL FAULTS AND WITH NO WARRANTY WHATSOEVER, EITHER EXPRESS OR IMPLIED, INCLUDING ANY WARRANTIES OF MERCHANTABILITY AND FITNESS FOR PARTICULAR PURPOSE. YOU ASSUME ANY AND ALL RISKS IN USING THE CALCULATOR AND RELYING ON THE INFORMATION CONTAINED HEREIN. IN NO CIRCUMSTANCES SHALL BASF BE LIABLE FOR ANY DAMAGES WHATSOEVER, INCLUDING BUT NOT LIMITED TO LOSS OF PROFIT, LOSS OF BUSINESS, LOSS OF SAVINGS, OR CONSEQUENTIAL DAMAGES, EVEN IF BASF HAS BEEN NOTIFIED AS SUCH.

Sheet Step 2 - OldManage Apps (hidden)
A15: Enter Acres for your Course (Required)
A16: Fairways & Tees Acres | C16: 40
A17: Greens Acres | C17: 10
A19: Please complete Yellow "Use Area" cells with either Fairways or Greens
A20: Fungicide Planner | M20: Fairways
A21: Product Name | B21: Case Size | C21: Use Area | D21: Low Rate | F21: Mid Rate | H21: High Rate | M21: Greens
D22: Total Acres | E22: Applications | F22: Total Acres | G22: Applications | H22: Total Acres | I22: Applications
A23: Emerald | B23: 10 x .49 lb. | C23: Fairways | D23: =SUMIFS('Step 2 - Order Planner'!J$26:J$29,'Step 2 - Order Planner'!$C$26:$C$29,$K23)+SUMIFS('Step 2 - Order Planner'!J$34:J$53,'Step 2 - Order Planner'!$C$34:$C$53,$K23) -> 0 | E23: =IF(OR($C$16=0,$C$17=0),"Please Enter Acreage",IF(C23="Greens",D23/$C$17,IF(C23="Fairways",D23/$C$16,0))) -> 0 | F23: =SUMIFS('Step 2 - Order Planner'!K$26:K$29,'Step 2 - Order Planner'!$C$26:$C$29,$K23)+SUMIFS('Step 2 - Order Planner'!K$34:K$53,'Step 2 - Order Planner'!$C$34:$C$53,$K23) -> 0 | G23: =IF(OR($C$16=0,$C$17=0),"Please Enter Acreage",IF(C23="Greens",F23/$C$17,IF(C23="Fairways",F23/$C$16,0))) -> 0 | H23: =SUMIFS('Step 2 - Order Planner'!L$26:L$29,'Step 2 - Order Planner'!$C$26:$C$29,$K23)+SUMIFS('Step 2 - Order Planner'!L$34:L$53,'Step 2 - Order Planner'!$C$34:$C$53,$K23) -> 0 | I23: =IF(OR($C$16=0,$C$17=0),"Please Enter Acreage",IF(C23="Greens",H23/$C$17,IF(C23="Fairways",H23/$C$16,0))) -> 0 | K23: 59021463
B24: 50 x .49 lb. | D24: =SUMIFS('Step 2 - Order Planner'!J$26:J$29,'Step 2 - Order Planner'!$C$26:$C$29,$K24)+SUMIFS('Step 2 - Order Planner'!J$34:J$53,'Step 2 - Order Planner'!$C$34:$C$53,$K24) -> 0 | E24: 0 | F24: =SUMIFS('Step 2 - Order Planner'!K$26:K$29,'Step 2 - Order Planner'!$C$26:$C$29,$K24)+SUMIFS('Step 2 - Order Planner'!K$34:K$53,'Step 2 - Order Planner'!$C$34:$C$53,$K24) -> 0 | G24: =IF(OR($C$16=0,$C$17=0),"Please Enter Acreage",IF(C24="Greens",F24/$C$17,IF(C24="Fairways",F24/$C$16,0))) -> 0 | H24: =SUMIFS('Step 2 - Order Planner'!L$26:L$29,'Step 2 - Order Planner'!$C$26:$C$29,$K24)+SUMIFS('Step 2 - Order Planner'!L$34:L$53,'Step 2 - Order Planner'!$C$34:$C$53,$K24) -> 0 | I24: 0 | K24: 59012825
A25: Honor | B25: 1 x 36 lb | D25: =SUMIFS('Step 2 - Order Planner'!J$26:J$29,'Step 2 - Order Planner'!$C$26:$C$29,$K25)+SUMIFS('Step 2 - Order Planner'!J$34:J$53,'Step 2 - Order Planner'!$C$34:$C$53,$K25) -> 0 | E25: 0 | F25: =SUMIFS('Step 2 - Order Planner'!K$26:K$29,'Step 2 - Order Planner'!$C$26:$C$29,$K25)+SUMIFS('Step 2 - Order Planner'!K$34:K$53,'Step 2 - Order Planner'!$C$34:$C$53,$K25) -> 0 | G25: =IF(OR($C$16=0,$C$17=0),"Please Enter Acreage",IF(C25="Greens",F25/$C$17,IF(C25="Fairways",F25/$C$16,0))) -> 0 | H25: =SUMIFS('Step 2 - Order Planner'!L$26:L$29,'Step 2 - Order Planner'!$C$26:$C$29,$K25)+SUMIFS('Step 2 - Order Planner'!L$34:L$53,'Step 2 - Order Planner'!$C$34:$C$53,$K25) -> 0 | I25: 0 | K25: 59012885
B26: 6 x 3 lb | D26: =SUMIFS('Step 2 - Order Planner'!J$26:J$29,'Step 2 - Order Planner'!$C$26:$C$29,$K26)+SUMIFS('Step 2 - Order Planner'!J$34:J$53,'Step 2 - Order Planner'!$C$34:$C$53,$K26) -> 0 | E26: 0 | F26: =SUMIFS('Step 2 - Order Planner'!K$26:K$29,'Step 2 - Order Planner'!$C$26:$C$29,$K26)+SUMIFS('Step 2 - Order Planner'!K$34:K$53,'Step 2 - Order Planner'!$C$34:$C$53,$K26) -> 0 | G26: 0 | H26: =SUMIFS('Step 2 - Order Planner'!L$26:L$29,'Step 2 - Order Planner'!$C$26:$C$29,$K26)+SUMIFS('Step 2 - Order Planner'!L$34:L$53,'Step 2 - Order Planner'!$C$34:$C$53,$K26) -> 0 | I26: 0 | K26: 59012350
A27: Insignia SC | B27: 2 x 2.5 gal | D27: =SUMIFS('Step 2 - Order Planner'!J$26:J$29,'Step 2 - Order Planner'!$C$26:$C$29,$K27)+SUMIFS('Step 2 - Order Planner'!J$34:J$53,'Step 2 - Order Planner'!$C$34:$C$53,$K27) -> 0 | E27: 0 | F27: =SUMIFS('Step 2 - Order Planner'!K$26:K$29,'Step 2 - Order Planner'!$C$26:$C$29,$K27)+SUMIFS('Step 2 - Order Planner'!K$34:K$53,'Step 2 - Order Planner'!$C$34:$C$53,$K27) -> 0 | G27: =IF(OR($C$16=0,$C$17=0),"Please Enter Acreage",IF(C27="Greens",F27/$C$17,IF(C27="Fairways",F27/$C$16,0))) -> 0 | H27: =SUMIFS('Step 2 - Order Planner'!L$26:L$29,'Step 2 - Order Planner'!$C$26:$C$29,$K27)+SUMIFS('Step 2 - Order Planner'!L$34:L$53,'Step 2 - Order Planner'!$C$34:$C$53,$K27) -> 0 | I27: 0 | K27: 59014135
B28: 4 x 30.5 oz | D28: =SUMIFS('Step 2 - Order Planner'!J$26:J$29,'Step 2 - Order Planner'!$C$26:$C$29,$K28)+SUMIFS('Step 2 - Order Planner'!J$34:J$53,'Step 2 - Order Planner'!$C$34:$C$53,$K28) -> 0 | E28: 0 | F28: =SUMIFS('Step 2 - Order Planner'!K$26:K$29,'Step 2 - Order Planner'!$C$26:$C$29,$K28)+SUMIFS('Step 2 - Order Planner'!K$34:K$53,'Step 2 - Order Planner'!$C$34:$C$53,$K28) -> 0 | G28: =IF(OR($C$16=0,$C$17=0),"Please Enter Acreage",IF(C28="Greens",F28/$C$17,IF(C28="Fairways",F28/$C$16,0))) -> 0 | H28: =SUMIFS('Step 2 - Order Planner'!L$26:L$29,'Step 2 - Order Planner'!$C$26:$C$29,$K28)+SUMIFS('Step 2 - Order Planner'!L$34:L$53,'Step 2 - Order Planner'!$C$34:$C$53,$K28) -> 0 | I28: =IF(OR($C$16=0,$C$17=0),"Please Enter Acreage",IF(C28="Greens",H28/$C$17,IF(C28="Fairways",H28/$C$16,0))) -> 0 | K28: 59014134
A29: Lexicon | B29: 4 x 21 oz | D29: =SUMIFS('Step 2 - Order Planner'!J$26:J$29,'Step 2 - Order Planner'!$C$26:$C$29,$K29)+SUMIFS('Step 2 - Order Planner'!J$34:J$53,'Step 2 - Order Planner'!$C$34:$C$53,$K29) -> 0 | E29: 0 | F29: =SUMIFS('Step 2 - Order Planner'!K$26:K$29,'Step 2 - Order Planner'!$C$26:$C$29,$K29)+SUMIFS('Step 2 - Order Planner'!K$34:K$53,'Step 2 - Order Planner'!$C$34:$C$53,$K29) -> 0 | G29: 0 | H29: =SUMIFS('Step 2 - Order Planner'!L$26:L$29,'Step 2 - Order Planner'!$C$26:$C$29,$K29)+SUMIFS('Step 2 - Order Planner'!L$34:L$53,'Step 2 - Order Planner'!$C$34:$C$53,$K29) -> 0 | I29: 0 | K29: 59013840
A30: Maxtima | B30: 4 x26 oz | D30: =SUMIFS('Step 2 - Order Planner'!J$26:J$29,'Step 2 - Order Planner'!$C$26:$C$29,$K30)+SUMIFS('Step 2 - Order Planner'!J$34:J$53,'Step 2 - Order Planner'!$C$34:$C$53,$K30) -> 0 | E30: 0 | F30: =SUMIFS('Step 2 - Order Planner'!K$26:K$29,'Step 2 - Order Planner'!$C$26:$C$29,$K30)+SUMIFS('Step 2 - Order Planner'!K$34:K$53,'Step 2 - Order Planner'!$C$34:$C$53,$K30) -> 0 | G30: 0 | H30: =SUMIFS('Step 2 - Order Planner'!L$26:L$29,'Step 2 - Order Planner'!$C$26:$C$29,$K30)+SUMIFS('Step 2 - Order Planner'!L$34:L$53,'Step 2 - Order Planner'!$C$34:$C$53,$K30) -> 0 | I30: 0 | K30: 59018087
B31: 2x 2.5 gal | D31: =SUMIFS('Step 2 - Order Planner'!J$26:J$29,'Step 2 - Order Planner'!$C$26:$C$29,$K31)+SUMIFS('Step 2 - Order Planner'!J$34:J$53,'Step 2 - Order Planner'!$C$34:$C$53,$K31) -> 0 | E31: 0 | F31: =SUMIFS('Step 2 - Order Planner'!K$26:K$29,'Step 2 - Order Planner'!$C$26:$C$29,$K31)+SUMIFS('Step 2 - Order Planner'!K$34:K$53,'Step 2 - Order Planner'!$C$34:$C$53,$K31) -> 0 | G31: =IF(OR($C$16=0,$C$17=0),"Please Enter Acreage",IF(C31="Greens",F31/$C$17,IF(C31="Fairways",F31/$C$16,0))) -> 0 | H31: =SUMIFS('Step 2 - Order Planner'!L$26:L$29,'Step 2 - Order Planner'!$C$26:$C$29,$K31)+SUMIFS('Step 2 - Order Planner'!L$34:L$53,'Step 2 - Order Planner'!$C$34:$C$53,$K31) -> 0 | I31: 0 | K31: 59018071
A32: Navicon | B32: 4x37 fl oz | D32: =SUMIFS('Step 2 - Order Planner'!J$26:J$29,'Step 2 - Order Planner'!$C$26:$C$29,$K32)+SUMIFS('Step 2 - Order Planner'!J$34:J$53,'Step 2 - Order Planner'!$C$34:$C$53,$K32) -> 0 | E32: 0 | F32: =SUMIFS('Step 2 - Order Planner'!K$26:K$29,'Step 2 - Order Planner'!$C$26:$C$29,$K32)+SUMIFS('Step 2 - Order Planner'!K$34:K$53,'Step 2 - Order Planner'!$C$34:$C$53,$K32) -> 0 | G32: 0 | H32: =SUMIFS('Step 2 - Order Planner'!L$26:L$29,'Step 2 - Order Planner'!$C$26:$C$29,$K32)+SUMIFS('Step 2 - Order Planner'!L$34:L$53,'Step 2 - Order Planner'!$C$34:$C$53,$K32) -> 0 | I32: 0 | K32: 59018094
B33: 2x2.5 gal | D33: =SUMIFS('Step 2 - Order Planner'!J$26:J$29,'Step 2 - Order Planner'!$C$26:$C$29,$K33)+SUMIFS('Step 2 - Order Planner'!J$34:J$53,'Step 2 - Order Planner'!$C$34:$C$53,$K33) -> 0 | E33: 0 | F33: =SUMIFS('Step 2 - Order Planner'!K$26:K$29,'Step 2 - Order Planner'!$C$26:$C$29,$K33)+SUMIFS('Step 2 - Order Planner'!K$34:K$53,'Step 2 - Order Planner'!$C$34:$C$53,$K33) -> 0 | G33: 0 | H33: =SUMIFS('Step 2 - Order Planner'!L$26:L$29,'Step 2 - Order Planner'!$C$26:$C$29,$K33)+SUMIFS('Step 2 - Order Planner'!L$34:L$53,'Step 2 - Order Planner'!$C$34:$C$53,$K33) -> 0 | I33: 0 | K33: 59018095
A34: Pillar G | B34: 15 lbs | D34: =SUMIFS('Step 2 - Order Planner'!J$26:J$29,'Step 2 - Order Planner'!$C$26:$C$29,$K34)+SUMIFS('Step 2 - Order Planner'!J$34:J$53,'Step 2 - Order Planner'!$C$34:$C$53,$K34) -> 0 | E34: 0 | F34: =SUMIFS('Step 2 - Order Planner'!K$26:K$29,'Step 2 - Order Planner'!$C$26:$C$29,$K34)+SUMIFS('Step 2 - Order Planner'!K$34:K$53,'Step 2 - Order Planner'!$C$34:$C$53,$K34) -> 0 | G34: =IF(OR($C$16=0,$C$17=0),"Please Enter Acreage",IF(C34="Greens",F34/$C$17,IF(C34="Fairways",F34/$C$16,0))) -> 0 | H34: =SUMIFS('Step 2 - Order Planner'!L$26:L$29,'Step 2 - Order Planner'!$C$26:$C$29,$K34)+SUMIFS('Step 2 - Order Planner'!L$34:L$53,'Step 2 - Order Planner'!$C$34:$C$53,$K34) -> 0 | I34: 0 | K34: 59017959
B35: 30 lbs | D35: =SUMIFS('Step 2 - Order Planner'!J$26:J$29,'Step 2 - Order Planner'!$C$26:$C$29,$K35)+SUMIFS('Step 2 - Order Planner'!J$34:J$53,'Step 2 - Order Planner'!$C$34:$C$53,$K35) -> 0 | E35: 0 | F35: =SUMIFS('Step 2 - Order Planner'!K$26:K$29,'Step 2 - Order Planner'!$C$26:$C$29,$K35)+SUMIFS('Step 2 - Order Planner'!K$34:K$53,'Step 2 - Order Planner'!$C$34:$C$53,$K35) -> 0 | G35: 0 | H35: =SUMIFS('Step 2 - Order Planner'!L$26:L$29,'Step 2 - Order Planner'!$C$26:$C$29,$K35)+SUMIFS('Step 2 - Order Planner'!L$34:L$53,'Step 2 - Order Planner'!$C$34:$C$53,$K35) -> 0 | I35: 0 | K35: 59012784
A36: Xzemplar | B36: 2 x 114 oz | D36: =SUMIFS('Step 2 - Order Planner'!J$26:J$29,'Step 2 - Order Planner'!$C$26:$C$29,$K36)+SUMIFS('Step 2 - Order Planner'!J$34:J$53,'Step 2 - Order Planner'!$C$34:$C$53,$K36) -> 0 | E36: =IF(OR($C$16=0,$C$17=0),"Please Enter Acreage",IF(C36="Greens",D36/$C$17,IF(C36="Fairways",D36/$C$16,0))) -> 0 | F36: =SUMIFS('Step 2 - Order Planner'!K$26:K$29,'Step 2 - Order Planner'!$C$26:$C$29,$K36)+SUMIFS('Step 2 - Order Planner'!K$34:K$53,'Step 2 - Order Planner'!$C$34:$C$53,$K36) -> 0 | G36: =IF(OR($C$16=0,$C$17=0),"Please Enter Acreage",IF(C36="Greens",F36/$C$17,IF(C36="Fairways",F36/$C$16,0))) -> 0 | H36: =SUMIFS('Step 2 - Order Planner'!L$26:L$29,'Step 2 - Order Planner'!$C$26:$C$29,$K36)+SUMIFS('Step 2 - Order Planner'!L$34:L$53,'Step 2 - Order Planner'!$C$34:$C$53,$K36) -> 0 | I36: =IF(OR($C$16=0,$C$17=0),"Please Enter Acreage",IF(C36="Greens",H36/$C$17,IF(C36="Fairways",H36/$C$16,0))) -> 0 | K36: 59013833
B37: 4 x 11.4 oz | D37: =SUMIFS('Step 2 - Order Planner'!J$26:J$29,'Step 2 - Order Planner'!$C$26:$C$29,$K37)+SUMIFS('Step 2 - Order Planner'!J$34:J$53,'Step 2 - Order Planner'!$C$34:$C$53,$K37) -> 0 | E37: 0 | F37: =SUMIFS('Step 2 - Order Planner'!K$26:K$29,'Step 2 - Order Planner'!$C$26:$C$29,$K37)+SUMIFS('Step 2 - Order Planner'!K$34:K$53,'Step 2 - Order Planner'!$C$34:$C$53,$K37) -> 0 | G37: 0 | H37: =SUMIFS('Step 2 - Order Planner'!L$26:L$29,'Step 2 - Order Planner'!$C$26:$C$29,$K37)+SUMIFS('Step 2 - Order Planner'!L$34:L$53,'Step 2 - Order Planner'!$C$34:$C$53,$K37) -> 0 | I37: 0 | K37: 59014120
A40: BASF has developed this calculator using formulas that approximate the rebate amount under the 2020 Early Order Program. The calculator is being shared with you for information purposes only and for your private use in preparing your own calculations. While every effort has been made to ensure the accuracy and reliability of the information and formulas, no guarantee is given nor responsibility taken by BASF for the accuracy of the calculator or the applicability to your particular circumstances. BASF PROVIDES THIS CALCULATOR AND ANY RESULT THEREFROM AS IS WITH ALL FAULTS AND WITH NO WARRANTY WHATSOEVER, EITHER EXPRESS OR IMPLIED, INCLUDING ANY WARRANTIES OF MERCHANTABILITY AND FITNESS FOR PARTICULAR PURPOSE. YOU ASSUME ANY AND ALL RISKS IN USING THE CALCULATOR AND RELYING ON THE INFORMATION CONTAINED HEREIN. IN NO CIRCUMSTANCES SHALL BASF BE LIABLE FOR ANY DAMAGES WHATSOEVER, INCLUDING BUT NOT LIMITED TO LOSS OF PROFIT, LOSS OF BUSINESS, LOSS OF SAVINGS, OR CONSEQUENTIAL DAMAGES, EVEN IF BASF HAS BEEN NOTIFIED AS SUCH.

Sheet Step 3 - Review Order
A11: BASF 2025 EOP ORDER SUMMARY
A13: =NOW() -> 2024-09-09T13:37:43.390 | D13: Rebate Summary
A14: Order For | B14: Order Prepared By | D14: Total Purchase | F14: ='Step 2 - Order Planner'!H21 -> 0
A15: <Enter Customer Name> | B15: <Enter Name> | D15: Agency Fungicide Rebate Attained | F15: ='Step 2 - Order Planner'!B20 -> 0
A16: <Enter Business Name> | B16: <Enter Business Name>
A17: <City, ST Zip Code> | B17: <City, ST Zip Code> | D17: Across-The-Lawn Rebate | F17: ='Step 2 - Order Planner'!B22 -> 0
A18: <Phone> | B18: <Phone>
A19: <email address> | B19: <email address> | D19: Total EOP Rebate | F19: ='Step 2 - Order Planner'!H23 -> 0
A23: Your Order Detail
A25: Product | B25: Package | C25: Article No. | D25: Redemption Value | E25: Quantity | F25: Total
A26: =VLOOKUP($C26,'Article Reference'!$A$3:$D$42,2,FALSE) -> Insignia® SC Intrinsic® brand fungicide | B26: =VLOOKUP($C26,'Article Reference'!$A$3:$D$42,3,FALSE) -> 4 x 30.5 fl oz | C26: 59014134 | D26: =VLOOKUP($C26,'Article Reference'!$A$3:$D$42,4,FALSE) -> 2257 | E26: =VLOOKUP(C26,'Step 2 - Order Planner'!$C$26:$H$53,4,FALSE)+VLOOKUP(C26,'Step 2 - Order Planner'!$C$26:$H$53,6,FALSE) -> 0 | F26: =E26*D26 -> 0
A27: =VLOOKUP($C27,'Article Reference'!$A$3:$D$42,2,FALSE) -> Insignia® SC Intrinsic® brand fungicide | B27: =VLOOKUP($C27,'Article Reference'!$A$3:$D$42,3,FALSE) -> 2 x 2.5 gal | C27: 59014135 | D27: =VLOOKUP($C27,'Article Reference'!$A$3:$D$42,4,FALSE) -> 7375 | E27: =VLOOKUP(C27,'Step 2 - Order Planner'!$C$26:$H$53,4,FALSE)+VLOOKUP(C27,'Step 2 - Order Planner'!$C$26:$H$53,6,FALSE) -> 0 | F27: 0
A28: =VLOOKUP($C28,'Article Reference'!$A$3:$D$42,2,FALSE) -> Lexicon® Intrinsic® brand fungicide | B28: =VLOOKUP($C28,'Article Reference'!$A$3:$D$42,3,FALSE) -> 4 x 21 oz | C28: 59027998 | D28: =VLOOKUP($C28,'Article Reference'!$A$3:$D$42,4,FALSE) -> 2478 | E28: =VLOOKUP(C28,'Step 2 - Order Planner'!$C$26:$H$53,4,FALSE)+VLOOKUP(C28,'Step 2 - Order Planner'!$C$26:$H$53,6,FALSE) -> 0 | F28: 0
A29: =VLOOKUP($C29,'Article Reference'!$A$3:$D$42,2,FALSE) -> Xzemplar® fungicide | B29: =VLOOKUP($C29,'Article Reference'!$A$3:$D$42,3,FALSE) -> 2 x 114 oz | C29: 59013833 | D29: =VLOOKUP($C29,'Article Reference'!$A$3:$D$42,4,FALSE) -> 3534 | E29: =VLOOKUP(C29,'Step 2 - Order Planner'!$C$26:$H$53,4,FALSE)+VLOOKUP(C29,'Step 2 - Order Planner'!$C$26:$H$53,6,FALSE) -> 0 | F29: 0
A30: =VLOOKUP($C30,'Article Reference'!$A$3:$D$42,2,FALSE) -> Xzemplar® fungicide | B30: =VLOOKUP($C30,'Article Reference'!$A$3:$D$42,3,FALSE) -> 4 x 11.4 oz | C30: 59014120 | D30: =VLOOKUP($C30,'Article Reference'!$A$3:$D$42,4,FALSE) -> 824 | E30: =VLOOKUP(C30,'Step 2 - Order Planner'!$C$26:$H$53,4,FALSE)+VLOOKUP(C30,'Step 2 - Order Planner'!$C$26:$H$53,6,FALSE) -> 0 | F30: 0
A31: Agency Lawn Fungicide Program Rebate Purchases Sub-Total | F31: ='Step 2 - Order Planner'!H17 -> 0
A32: =VLOOKUP($C32,'Article Reference'!$A$3:$D$42,2,FALSE) -> Amdro Pro Fire Ant Bait | B32: =VLOOKUP($C32,'Article Reference'!$A$3:$D$42,3,FALSE) -> 1 x 25lbs | C32: 59021451 | D32: =VLOOKUP($C32,'Article Reference'!$A$3:$D$42,4,FALSE) -> 593.75 | E32: =VLOOKUP(C32,'Step 2 - Order Planner'!$C$26:$H$53,4,FALSE)+VLOOKUP(C32,'Step 2 - Order Planner'!$C$26:$H$53,6,FALSE) -> 0 | F32: 0
A33: =VLOOKUP($C33,'Article Reference'!$A$3:$D$42,2,FALSE) -> Drive® XLR8 herbicide | B33: =VLOOKUP($C33,'Article Reference'!$A$3:$D$42,3,FALSE) -> 4 x 0.5 gal | C33: 59011404 | D33: =VLOOKUP($C33,'Article Reference'!$A$3:$D$42,4,FALSE) -> 228.13 | E33: =VLOOKUP(C33,'Step 2 - Order Planner'!$C$26:$H$53,4,FALSE)+VLOOKUP(C33,'Step 2 - Order Planner'!$C$26:$H$53,6,FALSE) -> 0 | F33: 0
A34: =VLOOKUP($C34,'Article Reference'!$A$3:$D$42,2,FALSE) -> Drive® XLR8 herbicide | B34: =VLOOKUP($C34,'Article Reference'!$A$3:$D$42,3,FALSE) -> 2 x 2.5 gal | C34: 59018043 | D34: =VLOOKUP($C34,'Article Reference'!$A$3:$D$42,4,FALSE) -> 529.69 | E34: =VLOOKUP(C34,'Step 2 - Order Planner'!$C$26:$H$53,4,FALSE)+VLOOKUP(C34,'Step 2 - Order Planner'!$C$26:$H$53,6,FALSE) -> 0 | F34: =E34*D34 -> 0
A35: =VLOOKUP($C35,'Article Reference'!$A$3:$D$42,2,FALSE) -> FreeHand® 1.75G CA herbicide | B35: =VLOOKUP($C35,'Article Reference'!$A$3:$D$42,3,FALSE) -> 1 x 50 lb | C35: 59013674 | D35: =VLOOKUP($C35,'Article Reference'!$A$3:$D$42,4,FALSE) -> 113.5 | E35: =VLOOKUP(C35,'Step 2 - Order Planner'!$C$26:$H$53,4,FALSE)+VLOOKUP(C35,'Step 2 - Order Planner'!$C$26:$H$53,6,FALSE) -> 0 | F35: 0
A36: =VLOOKUP($C36,'Article Reference'!$A$3:$D$42,2,FALSE) -> Orkestra® Intrinsic® brand Fungicide | B36: =VLOOKUP($C36,'Article Reference'!$A$3:$D$42,3,FALSE) -> 4 x 16 oz | C36: 59014379 | D36: =VLOOKUP($C36,'Article Reference'!$A$3:$D$42,4,FALSE) -> 684.8 | E36: =VLOOKUP(C36,'Step 2 - Order Planner'!$C$26:$H$53,4,FALSE)+VLOOKUP(C36,'Step 2 - Order Planner'!$C$26:$H$53,6,FALSE) -> 0 | F36: 0
A37: =VLOOKUP($C37,'Article Reference'!$A$3:$D$42,2,FALSE) -> Pageant® Intrinsic® brand Fungicide | B37: =VLOOKUP($C37,'Article Reference'!$A$3:$D$42,3,FALSE) -> 4 x 1 lb | C37: 59012349 | D37: =VLOOKUP($C37,'Article Reference'!$A$3:$D$42,4,FALSE) -> 452 | E37: =VLOOKUP(C37,'Step 2 - Order Planner'!$C$26:$H$53,4,FALSE)+VLOOKUP(C37,'Step 2 - Order Planner'!$C$26:$H$53,6,FALSE) -> 0 | F37: 0
A38: =VLOOKUP($C38,'Article Reference'!$A$3:$D$42,2,FALSE) -> Pendulum® 2G herbicide | B38: =VLOOKUP($C38,'Article Reference'!$A$3:$D$42,3,FALSE) -> 20 lbs bag | C38: 59017972 | D38: =VLOOKUP($C38,'Article Reference'!$A$3:$D$42,4,FALSE) -> 51.25 | E38: =VLOOKUP(C38,'Step 2 - Order Planner'!$C$26:$H$53,4,FALSE)+VLOOKUP(C38,'Step 2 - Order Planner'!$C$26:$H$53,6,FALSE) -> 0 | F38: 0
A39: =VLOOKUP($C39,'Article Reference'!$A$3:$D$42,2,FALSE) -> Pendulum® 2G herbicide | B39: =VLOOKUP($C39,'Article Reference'!$A$3:$D$42,3,FALSE) -> 40 lbs bag | C39: 59015072 | D39: =VLOOKUP($C39,'Article Reference'!$A$3:$D$42,4,FALSE) -> 90 | E39: =VLOOKUP(C39,'Step 2 - Order Planner'!$C$26:$H$53,4,FALSE)+VLOOKUP(C39,'Step 2 - Order Planner'!$C$26:$H$53,6,FALSE) -> 0 | F39: =E39*D39 -> 0
A40: =VLOOKUP($C40,'Article Reference'!$A$3:$D$42,2,FALSE) -> Pendulum® AquaCap herbicide | B40: =VLOOKUP($C40,'Article Reference'!$A$3:$D$42,3,FALSE) -> 2 x 2.5 gal | C40: 59049276 | D40: =VLOOKUP($C40,'Article Reference'!$A$3:$D$42,4,FALSE) -> 290.63 | E40: =VLOOKUP(C40,'Step 2 - Order Planner'!$C$26:$H$53,4,FALSE)+VLOOKUP(C40,'Step 2 - Order Planner'!$C$26:$H$53,6,FALSE) -> 0 | F40: 0
A41: =VLOOKUP($C41,'Article Reference'!$A$3:$D$42,2,FALSE) -> Pendulum® AquaCap herbicide | B41: =VLOOKUP($C41,'Article Reference'!$A$3:$D$42,3,FALSE) -> 1 x 15 gal | C41: 59011279 | D41: =VLOOKUP($C41,'Article Reference'!$A$3:$D$42,4,FALSE) -> 1035 | E41: =VLOOKUP(C41,'Step 2 - Order Planner'!$C$26:$H$53,4,FALSE)+VLOOKUP(C41,'Step 2 - Order Planner'!$C$26:$H$53,6,FALSE) -> 0 | F41: =E41*D41 -> 0
A42: =VLOOKUP($C42,'Article Reference'!$A$3:$D$42,2,FALSE) -> Pillar® G Intrinsic® brand fungicide | B42: =VLOOKUP($C42,'Article Reference'!$A$3:$D$42,3,FALSE) -> 15 lbs bag | C42: 59017959 | D42: =VLOOKUP($C42,'Article Reference'!$A$3:$D$42,4,FALSE) -> 59.63 | E42: =VLOOKUP(C42,'Step 2 - Order Planner'!$C$26:$H$53,4,FALSE)+VLOOKUP(C42,'Step 2 - Order Planner'!$C$26:$H$53,6,FALSE) -> 0 | F42: 0
A43: =VLOOKUP($C43,'Article Reference'!$A$3:$D$42,2,FALSE) -> Pillar® G Intrinsic® brand fungicide | B43: =VLOOKUP($C43,'Article Reference'!$A$3:$D$42,3,FALSE) -> 30 lbs bag | C43: 59012784 | D43: =VLOOKUP($C43,'Article Reference'!$A$3:$D$42,4,FALSE) -> 110.63 | E43: =VLOOKUP(C43,'Step 2 - Order Planner'!$C$26:$H$53,4,FALSE)+VLOOKUP(C43,'Step 2 - Order Planner'!$C$26:$H$53,6,FALSE) -> 0 | F43: 0
A44: =VLOOKUP($C44,'Article Reference'!$A$3:$D$42,2,FALSE) -> Pylex® herbicide | B44: =VLOOKUP($C44,'Article Reference'!$A$3:$D$42,3,FALSE) -> 4 x 4 oz | C44: 59018005 | D44: =VLOOKUP($C44,'Article Reference'!$A$3:$D$42,4,FALSE) -> 1472 | E44: =VLOOKUP(C44,'Step 2 - Order Planner'!$C$26:$H$53,4,FALSE)+VLOOKUP(C44,'Step 2 - Order Planner'!$C$26:$H$53,6,FALSE) -> 0 | F44: 0
A45: =VLOOKUP($C45,'Article Reference'!$A$3:$D$42,2,FALSE) -> Siesta® Fire Ant Bait | B45: =VLOOKUP($C45,'Article Reference'!$A$3:$D$42,3,FALSE) -> 15 lbs | C45: 59011057 | D45: =VLOOKUP($C45,'Article Reference'!$A$3:$D$42,4,FALSE) -> 289.13 | E45: =VLOOKUP(C45,'Step 2 - Order Planner'!$C$26:$H$53,4,FALSE)+VLOOKUP(C45,'Step 2 - Order Planner'!$C$26:$H$53,6,FALSE) -> 0 | F45: 0
A46: =VLOOKUP($C46,'Article Reference'!$A$3:$D$42,2,FALSE) -> Sultan® miticide | B46: =VLOOKUP($C46,'Article Reference'!$A$3:$D$42,3,FALSE) -> 4 x 0.125 gal | C46: 59023753 | D46: =VLOOKUP($C46,'Article Reference'!$A$3:$D$42,4,FALSE) -> 725 | E46: =VLOOKUP(C46,'Step 2 - Order Planner'!$C$26:$H$53,4,FALSE)+VLOOKUP(C46,'Step 2 - Order Planner'!$C$26:$H$53,6,FALSE) -> 0 | F46: 0
A47: =VLOOKUP($C47,'Article Reference'!$A$3:$D$42,2,FALSE) -> Tower® herbicide | B47: =VLOOKUP($C47,'Article Reference'!$A$3:$D$42,3,FALSE) -> 2 x 2.5 gal | C47: 59014247 | D47: =VLOOKUP($C47,'Article Reference'!$A$3:$D$42,4,FALSE) -> 2100 | E47: =VLOOKUP(C47,'Step 2 - Order Planner'!$C$26:$H$53,4,FALSE)+VLOOKUP(C47,'Step 2 - Order Planner'!$C$26:$H$53,6,FALSE) -> 0 | F47: 0
A48: =VLOOKUP($C48,'Article Reference'!$A$3:$D$42,2,FALSE) -> Ventigra® insecticide | B48: =VLOOKUP($C48,'Article Reference'!$A$3:$D$42,3,FALSE) -> 4 x 20 oz | C48: 59014680 | D48: =VLOOKUP($C48,'Article Reference'!$A$3:$D$42,4,FALSE) -> 1328 | E48: =VLOOKUP(C48,'Step 2 - Order Planner'!$C$26:$H$53,4,FALSE)+VLOOKUP(C48,'Step 2 - Order Planner'!$C$26:$H$53,6,FALSE) -> 0 | F48: =E48*D48 -> 0
A49: Across-the-Lawn-Solutions Rebate Purchase Sub-Total | F49: ='Step 2 - Order Planner'!H19 -> 0
A51: BASF has developed this calculator using formulas that approximate the rebate amount under the 2025 Early Order Program. The calculator is being shared with you for information purposes only and for your private use in preparing your own calculations. While every effort has been made to ensure the accuracy and reliability of the information and formulas, no guarantee is given nor responsibility taken by BASF for the accuracy of the calculator or the applicability to your particular circumstances. BASF PROVIDES THIS CALCULATOR AND ANY RESULT THEREFROM AS IS WITH ALL FAULTS AND WITH NO WARRANTY WHATSOEVER, EITHER EXPRESS OR IMPLIED, INCLUDING ANY WARRANTIES OF MERCHANTABILITY AND FITNESS FOR PARTICULAR PURPOSE. YOU ASSUME ANY AND ALL RISKS IN USING THE CALCULATOR AND RELYING ON THE INFORMATION CONTAINED HEREIN. IN NO CIRCUMSTANCES SHALL BASF BE LIABLE FOR ANY DAMAGES WHATSOEVER, INCLUDING BUT NOT LIMITED TO LOSS OF PROFIT, LOSS OF BUSINESS, LOSS OF SAVINGS, OR CONSEQUENTIAL DAMAGES, EVEN IF BASF HAS BEEN NOTIFIED AS SUCH.

Sheet Range Reference (hidden)
A1: Standard | C1: Oct | D1: Nov-Dec | L1: Article# | M1: Article | N1: Package | O1: Oct Order | P1: Nov-Dec Order | Q1: Oct Count | R1: Nov-Dec Count | S1: Total
A2: Low | B2: High | C2: Discount | D2: Discount | E2: Oct Applied | G2: Rebate Applied | L2: 59026671 | M2: Aramax™ Intrinsic® Brand Fungicide | N2: 2 x 2.5 gal | Q2: =IF(O2>0,1,0) -> 0 | R2: 0 | S2: =IF(OR(Q2=1,R2=1),1,0) -> 0
A3: 3000 | B3: =A4-1 -> 7999 | C3: 0.04 | D3: 0.04 | E3: =IF(AND(('Step 2 - Order Planner'!$H$19+$E$7)>=3000,'Step 2 - Order Planner'!$H$19+$E$7>=$A3,'Step 2 - Order Planner'!$H$19+$E$7<=$B3),C3) -> FALSE | G3: =SUM(E3:F3) -> 0 | L3: 59021463 | M3: =VLOOKUP($L3,'Article Reference'!$A$3:$C$7,2,FALSE) ->  | N3: =VLOOKUP($L3,'Article Reference'!$A$3:$C$7,3,FALSE) ->  | Q3: 0 | R3: 0 | S3: =IF(OR(Q3=1,R3=1),1,0) -> 0
A4: 8000 | B4: =A5-1 -> 19999 | C4: 0.06 | D4: 0.06 | E4: =IF(AND(('Step 2 - Order Planner'!$H$19+$E$7)>=3000,'Step 2 - Order Planner'!$H$19+$E$7>=$A4,'Step 2 - Order Planner'!$H$19+$E$7<=$B4),C4) -> FALSE | G4: =SUM(E4:F4) -> 0 | L4: 59014003 | M4: =VLOOKUP($L4,'Article Reference'!$A$3:$C$7,2,FALSE) ->  | N4: =VLOOKUP($L4,'Article Reference'!$A$3:$C$7,3,FALSE) ->  | Q4: 0 | R4: 0 | S4: =IF(OR(Q4=1,R4=1),1,0) -> 0
A5: 20000 | B5: 1000000 | C5: 0.12 | D5: 0.12 | E5: =IF(AND(('Step 2 - Order Planner'!$H$19+$E$7)>=3000,'Step 2 - Order Planner'!$H$19+$E$7>=$A5,'Step 2 - Order Planner'!$H$19+$E$7<=$B5),C5) -> FALSE | G5: =SUM(E5:F5) -> 0 | L5: 59012350 | M5: =VLOOKUP($L5,'Article Reference'!$A$3:$C$7,2,FALSE) ->  | N5: =VLOOKUP($L5,'Article Reference'!$A$3:$C$7,3,FALSE) ->  | Q5: =IF(O5+O6>0,1,0) -> 0 | R5: =IF(P5+P6>0,1,0) -> 0 | S5: =IF(OR(Q5=1,R5=1),1,0) -> 0
C6: DISCOUNT | E6: =SUM(E3:E5) -> 0 | G6: =SUM(E6:F6) -> 0 | L6: 59012885 | M6: =VLOOKUP($L6,'Article Reference'!$A$3:$C$7,2,FALSE) ->  | N6: =VLOOKUP($L6,'Article Reference'!$A$3:$C$7,3,FALSE) -> 
E7: 0 | L7: 59014134 | M7: =VLOOKUP($L7,'Article Reference'!$A$3:$C$7,2,FALSE) -> Insignia® SC Intrinsic® brand fungicide | N7: =VLOOKUP($L7,'Article Reference'!$A$3:$C$7,3,FALSE) -> 4 x 30.5 fl oz | O7: =VLOOKUP(L7,'Step 2 - Order Planner'!$C$26:$F$30,4,FALSE) -> 0 | P7: =VLOOKUP(L7,'Step 2 - Order Planner'!$C$26:$H$30,6,FALSE) -> 0 | Q7: =IF(O7+O8>0,1,0) -> 0 | R7: =IF(P7+P8>0,1,0) -> 0 | S7: =IF(OR(Q7=1,R7=1),1,0) -> 0
L8: 59014135 | M8: =VLOOKUP($L8,'Article Reference'!$A$3:$C$7,2,FALSE) -> Insignia® SC Intrinsic® brand fungicide | N8: =VLOOKUP($L8,'Article Reference'!$A$3:$C$7,3,FALSE) -> 2 x 2.5 gal | O8: =VLOOKUP(L8,'Step 2 - Order Planner'!$C$26:$F$30,4,FALSE) -> 0 | P8: =VLOOKUP(L8,'Step 2 - Order Planner'!$C$26:$H$30,6,FALSE) -> 0
A9: DYOP | C9: Oct | D9: Nov-Dec | L9: 59027998 | M9: =VLOOKUP($L9,'Article Reference'!$A$3:$C$7,2,FALSE) -> Lexicon® Intrinsic® brand fungicide | N9: =VLOOKUP($L9,'Article Reference'!$A$3:$C$7,3,FALSE) -> 4 x 21 oz | O9: =VLOOKUP(L9,'Step 2 - Order Planner'!$C$26:$F$30,4,FALSE) -> 0 | P9: =VLOOKUP(L9,'Step 2 - Order Planner'!$C$26:$H$30,6,FALSE) -> 0 | Q9: =IF(O9>0,1,0) -> 0 | R9: =IF(P9>0,1,0) -> 0 | S9: =IF(OR(Q9=1,R9=1),1,0) -> 0
A10: Low | B10: High | C10: Discount | D10: Discount | E10: Oct Applied | F10: Nov-Dec Applied | G10: Rebate Applied | H10: ='Step 2 - Order Planner'!H17:I17 -> 0 | L10: 59018087 | M10: =VLOOKUP($L10,'Article Reference'!$A$3:$C$7,2,FALSE) ->  | N10: =VLOOKUP($L10,'Article Reference'!$A$3:$C$7,3,FALSE) ->  | Q10: =IF(O10+O11>0,1,0) -> 0 | R10: =IF(P10+P11>0,1,0) -> 0 | S10: =IF(OR(Q10=1,R10=1),1,0) -> 0
A11: 3000 | B11: =A12-1 -> 7999 | C11: 0.08 | D11: 0.04 | E11: =IF(AND(('Step 2 - Order Planner'!$G$31)>=3000,Q17>=1),C11) -> FALSE | F11: =IF(AND(('Step 2 - Order Planner'!$J$31)>=3000,S17>=1),D11) -> FALSE | G11: =IF(E11<>FALSE,E11,F11) -> FALSE | H11: =A11-H10 -> 3000 | I11: 0.08 | L11: 59018071 | M11: =VLOOKUP($L11,'Article Reference'!$A$3:$C$7,2,FALSE) ->  | N11: =VLOOKUP($L11,'Article Reference'!$A$3:$C$7,3,FALSE) -> 
A12: 8000 | B12: =A13-1 -> 19999 | C12: 0.14 | D12: 0.07 | E12: =IF(AND(('Step 2 - Order Planner'!$G$31)>=3000,$Q$17>=1,'Step 2 - Order Planner'!J31>=$A12,'Step 2 - Order Planner'!J31<=$B12),C12) -> FALSE | F12: =IF(AND(('Step 2 - Order Planner'!$J$31)>=3000,$S$17>=1,'Step 2 - Order Planner'!J31>=$A12,'Step 2 - Order Planner'!J31<=$B12),D12) -> FALSE | G12: =IF(E12<>FALSE,E12,F12) -> FALSE | H12: =A12-H10 -> 8000 | I12: 0.14 | L12: 59018094 | M12: =VLOOKUP($L12,'Article Reference'!$A$3:$C$7,2,FALSE) ->  | N12: =VLOOKUP($L12,'Article Reference'!$A$3:$C$7,3,FALSE) ->  | Q12: =IF(O12+O13>0,1,0) -> 0 | R12: =IF(P12+P13>0,1,0) -> 0 | S12: =IF(OR(Q12=1,R12=1),1,0) -> 0
A13: 20000 | B13: =A14-1 -> 29999 | C13: 0.17 | D13: 0.09 | E13: =IF(AND(('Step 2 - Order Planner'!$G$31)>=3000,Q17>=1,'Step 2 - Order Planner'!J31>=$A13,'Step 2 - Order Planner'!J31<=$B13),C13) -> FALSE | F13: =IF(AND(('Step 2 - Order Planner'!$J$31)>=3000,$S$17>=1,'Step 2 - Order Planner'!J31>=$A13,'Step 2 - Order Planner'!J31<=$B13),D13) -> FALSE | G13: =IF(E13<>FALSE,E13,F13) -> FALSE | H13: =A13-H10 -> 20000 | I13: 0.17 | L13: 59018095 | M13: =VLOOKUP($L13,'Article Reference'!$A$3:$C$7,2,FALSE) ->  | N13: =VLOOKUP($L13,'Article Reference'!$A$3:$C$7,3,FALSE) -> 
A14: 30000 | B14: =A15-1 -> 39999 | C14: 0.2 | D14: 0.1 | E14: =IF(AND(('Step 2 - Order Planner'!$G$31)>=3000,Q17>=1,'Step 2 - Order Planner'!J31>=$A14,'Step 2 - Order Planner'!J31<=$B14),C14) -> FALSE | F14: =IF(AND(('Step 2 - Order Planner'!$J$31)>=3000,$S$17>=1,'Step 2 - Order Planner'!J31>=$A14,'Step 2 - Order Planner'!J31<=$B14),D14) -> FALSE | G14: =IF(E14<>FALSE,E14,F14) -> FALSE | H14: =A14-H10 -> 30000 | I14: 0.2 | L14: 59013833 | M14: =VLOOKUP($L14,'Article Reference'!$A$3:$C$7,2,FALSE) -> Xzemplar® fungicide | N14: =VLOOKUP($L14,'Article Reference'!$A$3:$C$7,3,FALSE) -> 2 x 114 oz | O14: =VLOOKUP(L14,'Step 2 - Order Planner'!$C$26:$F$30,4,FALSE) -> 0 | P14: =VLOOKUP(L14,'Step 2 - Order Planner'!$C$26:$H$30,6,FALSE) -> 0 | Q14: =IF(O14+O16>0,1,0) -> 0 | R14: =IF(P14+P16>0,1,0) -> 0 | S14: =IF(OR(Q14=1,R14=1),1,0) -> 0
A15: 40000 | B15: 10000000 | C15: 0.24 | D15: 0.12 | E15: =IF(AND(('Step 2 - Order Planner'!$G$31)>=3000,Q17>=1,'Step 2 - Order Planner'!J31>=$A15,'Step 2 - Order Planner'!J31<=$B15),C15) -> FALSE | F15: =IF(AND(('Step 2 - Order Planner'!$J$31)>=3000,$S$17>=1,'Step 2 - Order Planner'!J31>=$A15,'Step 2 - Order Planner'!J31<=$B15),D15) -> FALSE | G15: =IF(E15<>FALSE,E15,F15) -> FALSE | H15: =A15-H10 -> 40000 | I15: 0.24
C16: DISCOUNT | G16: =MAX(G11:G15) -> 0 | H16: =MIN(IF(H11:H15>0,H11:H15)) -> 3000 | L16: 59014120 | M16: =VLOOKUP($L16,'Article Reference'!$A$3:$C$7,2,FALSE) -> Xzemplar® fungicide | N16: =VLOOKUP($L16,'Article Reference'!$A$3:$C$7,3,FALSE) -> 4 x 11.4 oz | O16: =VLOOKUP(L16,'Step 2 - Order Planner'!$C$26:$F$30,4,FALSE) -> 0 | P16: =VLOOKUP(L16,'Step 2 - Order Planner'!$C$26:$H$30,6,FALSE) -> 0
Q17: =SUM(Q2:Q16) -> 0 | R17: =SUM(R2:R16) -> 0 | S17: =SUM(S2:S16) -> 0
A18: Table B for Fungicides
A19: Low | B19: High | C19: Discount | D19: Discount | G19: Rebate Applied | H19: ='Step 2 - Order Planner'!H19:I19 -> 0
A20: 3000 | B20: =A21-1 -> 7999 | C20: 0.04 | D20: 0.04 | E20: =IF(AND(('Step 2 - Order Planner'!$G$31+'Step 2 - Order Planner'!$I$31+'Step 2 - Order Planner'!$G$54)>=3000,'Step 2 - Order Planner'!$G$31+'Step 2 - Order Planner'!$I$31+'Step 2 - Order Planner'!$G$54>=$A20,'Step 2 - Order Planner'!$G$31+'Step 2 - Order Planner'!$I$31+'Step 2 - Order Planner'!$G$54<=$B20,S17<=3),C20) -> FALSE | F20: =IF(AND(SUM('Step 2 - Order Planner'!G26:G29)>=3000,SUM('Step 2 - Order Planner'!G26:G29)<8000),0.04,0) -> 0 | G20: =SUM(E20:F20) -> 0 | H20: =A20-$H$19 -> 3000 | I20: 0.04
A21: 8000 | B21: =A22-1 -> 19999 | C21: 0.06 | D21: 0.06 | E21: =IF(AND(('Step 2 - Order Planner'!$G$31+'Step 2 - Order Planner'!$I$31+'Step 2 - Order Planner'!$G$54)>=3000,'Step 2 - Order Planner'!$G$31+'Step 2 - Order Planner'!$I$31+'Step 2 - Order Planner'!$G$54>=$A21,'Step 2 - Order Planner'!$G$31+'Step 2 - Order Planner'!$I$31+'Step 2 - Order Planner'!$G$54<=$B21,S17<=3),C21) -> FALSE | G21: =SUM(E21:F21) -> 0 | H21: =A21-$H$19 -> 8000 | I21: 0.06
A22: 20000 | B22: 1000000 | C22: 0.12 | D22: 0.12 | E22: =IF(AND(('Step 2 - Order Planner'!$G$31+'Step 2 - Order Planner'!$I$31+'Step 2 - Order Planner'!$G$54)>=3000,'Step 2 - Order Planner'!$G$31+'Step 2 - Order Planner'!$I$31+'Step 2 - Order Planner'!$G$54>=$A22,'Step 2 - Order Planner'!$G$31+'Step 2 - Order Planner'!$I$31+'Step 2 - Order Planner'!$G$54<=$B22,S17<=3),C22) -> FALSE | G22: =SUM(E22:F22) -> 0 | H22: 20000 | I22: 0.12
C23: DISCOUNT | E23: =SUM(E20:E22) -> 0 | F23: =SUM(F20:F22) -> 0 | G23: =SUM(E23:F23) -> 0 | H23: =MIN(IF(H20:H22>0,H20:H22)) -> 3000

Sheet Article Reference (hidden)
A1: 2025 Qualifying Fungicides
A2: Article Number | B2: Qaulifying Non-Agency Products | C2: Package | D2: Price | E2: CA Redemption | F2: Volume | G2: Rebate Sales | H2: Case UOM | I2: Price/UOM | J2: Case Price
A3: 59014134 | B3: Insignia® SC Intrinsic® brand fungicide | C3: 4 x 30.5 fl oz | D3: 2257 | E3: 2305.8 | F3: =VLOOKUP($A3,'Step 2 - Order Planner'!$C$26:$H$30,4,FALSE)+VLOOKUP($A3,'Step 2 - Order Planner'!$C$26:$H$30,6,FALSE) -> 0 | G3: =F3*D3 -> 0 | H3: =4*30.5 -> 122 | I3: =J3/H3 -> 18.5 | J3: =D3 -> 2257
A4: 59014135 | B4: Insignia® SC Intrinsic® brand fungicide | C4: 2 x 2.5 gal | D4: 7375 | E4: 7535.4 | F4: =VLOOKUP($A4,'Step 2 - Order Planner'!$C$26:$H$30,4,FALSE)+VLOOKUP($A4,'Step 2 - Order Planner'!$C$26:$H$30,6,FALSE) -> 0 | G4: =F4*D4 -> 0 | H4: 5 | I4: 1475 | J4: 7375
A5: 59027998 | B5: Lexicon® Intrinsic® brand fungicide | C5: 4 x 21 oz | D5: 2478 | E5: 2531.76 | F5: =VLOOKUP($A5,'Step 2 - Order Planner'!$C$26:$H$30,4,FALSE)+VLOOKUP($A5,'Step 2 - Order Planner'!$C$26:$H$30,6,FALSE) -> 0 | G5: 0 | H5: =4*21 -> 84 | I5: 29.5 | J5: 2478
A6: 59013833 | B6: Xzemplar® fungicide | C6: 2 x 114 oz | D6: 3534 | E6: 3611.52 | F6: =VLOOKUP($A6,'Step 2 - Order Planner'!$C$26:$H$30,4,FALSE)+VLOOKUP($A6,'Step 2 - Order Planner'!$C$26:$H$30,6,FALSE) -> 0 | G6: 0 | H6: =2*114 -> 228 | I6: 15.5 | J6: 3534
A7: 59014120 | B7: Xzemplar® fungicide | C7: 4 x 11.4 oz | D7: 824 | E7: 841.76 | F7: =VLOOKUP($A7,'Step 2 - Order Planner'!$C$26:$H$30,4,FALSE)+VLOOKUP($A7,'Step 2 - Order Planner'!$C$26:$H$30,6,FALSE) -> 0 | G7: 0 | H7: =4*11.4 -> 45.6 | I7: 18.07017544 | J7: 824
D8: =SUM(D3:D7) -> 16468 | E8: =SUM(E3:E7) -> 16826.24 | G8: =SUM(G3:G7) -> 0
A9: 2022 Rest of Portfolio
A10: Article Number | B10: Qaulifying Non-Agency Products | C10: Package | D10: Price | E10: CA Redemption
A11: 59014151 | B11: Admiral® lake colorant | C11: 4 x 1 gal | H11: 4 | I11: =J11/H11 -> 0 | J11: =D11 -> 0
A12: 59024020 | B12: Alucion® 35 WG insecticide | C12: 10 x 2.375 lbs | D12: 2565 | E12: NO CA | H12: =10*38 -> 380 | I12: 6.75 | J12: 2565
A13: 59021451 | B13: Amdro Pro Fire Ant Bait | C13: 1 x 25lbs | D13: 593.75 | E13: 593.75 | F13: =VLOOKUP(A13,'Step 2 - Order Planner'!$C$34:$F$53,4,FALSE) -> 0 | G13: =F13*D13 -> 0 | H13: 25 | I13: 23.75 | J13: 593.75
A14: 59011636 | B14: Basagran® herbicide | C14: 2 x 1 gal | D14: 127.5 | E14: NO CA | H14: 2 | I14: 63.75 | J14: 127.5
A15: 59013424 | B15: Black Onyx lake & pond colorant | C15: 4 x 1 gal | H15: 4 | I15: 0 | J15: 0
A16: 59011404 | B16: Drive® XLR8 herbicide | C16: 4 x 0.5 gal | D16: 228.13 | E16: 228.13 | F16: =VLOOKUP(A16,'Step 2 - Order Planner'!$C$34:$F$53,4,FALSE) -> 0 | G16: 0 | H16: =4*0.5 -> 2 | I16: 114.065 | J16: 228.13
A17: 59018043 | B17: Drive® XLR8 herbicide | C17: 2 x 2.5 gal | D17: 529.69 | E17: 529.69 | F17: =VLOOKUP(A17,'Step 2 - Order Planner'!$C$34:$F$53,4,FALSE) -> 0 | G17: 0 | J17: 529.69
A18: 59024131 | B18: Finale® XL T&O herbicide | C18: 2 x 2.5 gal | H18: 5 | I18: =J18/H18 -> 0 | J18: 0 | L18: <-- | M18: Discontinued ???
A19: 59013674 | B19: FreeHand® 1.75G CA herbicide | C19: 1 x 50 lb | D19: 113.5 | E19: 116.5 | F19: =VLOOKUP(A19,'Step 2 - Order Planner'!$C$34:$F$53,4,FALSE) -> 0 | G19: 0 | H19: 50 | I19: 2.27 | J19: 113.5 | L19: 59013674 | M19: FreeHand® 1.75G CA herbicide | N19: 1 x 50 lb
A20: 59013430 | B20: Green Lawnger® colorant | C20: 2 x 2.5 gal | H20: 5 | I20: 0 | J20: 0
A21: 59013410 | B21: Green Lawnger® Transition HC colorant | C21: 4 x 1 gal | H21: 4 | I21: 0 | J21: 0
A22: 59013342 | B22: Green Lawnger® Vision Pro colorant | C22: 4 x 1 gal | H22: 4 | I22: 0 | J22: 0
A23: 59020732 | B23: Insignia® SC Intrinsic® brand fungicide | C23: 4 x 122 oz | E23: =D23 -> 0 | H23: =4*122 -> 488 | I23: 0 | J23: 0 | L23: <-- | M23: Discontinued
A24: 59014379 | B24: Orkestra® Intrinsic® brand Fungicide | C24: 4 x 16 oz | D24: 684.8 | E24: 702.08 | F24: =VLOOKUP(A24,'Step 2 - Order Planner'!$C$34:$F$53,4,FALSE) -> 0 | G24: 0 | H24: =4*16 -> 64 | I24: 10.7 | J24: 684.8
A25: 59012349 | B25: Pageant® Intrinsic® brand Fungicide | C25: 4 x 1 lb | D25: 452 | E25: 463.4 | F25: =VLOOKUP(A25,'Step 2 - Order Planner'!$C$34:$F$53,4,FALSE) -> 0 | G25: 0 | H25: 4 | I25: 113 | J25: 452
A26: 59017972 | B26: Pendulum® 2G herbicide | C26: 20 lbs bag | D26: 51.25 | E26: 51.25 | F26: =VLOOKUP(A26,'Step 2 - Order Planner'!$C$34:$F$53,4,FALSE) -> 0 | G26: 0 | H26: 20 | I26: 2.5625 | J26: 51.25
A27: 59015072 | B27: Pendulum® 2G herbicide | C27: 40 lbs bag | D27: 90 | E27: 90 | F27: =VLOOKUP(A27,'Step 2 - Order Planner'!$C$34:$F$53,4,FALSE) -> 0 | G27: 0 | H27: 40 | I27: 2.25 | J27: 90
A28: 59049276 | B28: Pendulum® AquaCap herbicide | C28: 2 x 2.5 gal | D28: 290.63 | E28: 290.63 | F28: =VLOOKUP(A28,'Step 2 - Order Planner'!$C$34:$F$53,4,FALSE) -> 0 | G28: 0 | H28: 5 | I28: 58.126 | J28: 290.63
A29: 59011279 | B29: Pendulum® AquaCap herbicide | C29: 1 x 15 gal | D29: 1035 | E29: 1061.1 | F29: =VLOOKUP(A29,'Step 2 - Order Planner'!$C$34:$F$53,4,FALSE) -> 0 | G29: 0 | H29: 15 | I29: 69 | J29: 1035
A30: 59017959 | B30: Pillar® G Intrinsic® brand fungicide | C30: 15 lbs bag | D30: 59.63 | E30: 59.63 | F30: =VLOOKUP(A30,'Step 2 - Order Planner'!$C$34:$F$53,4,FALSE) -> 0 | G30: 0 | H30: 15 | I30: 3.975333333 | J30: 59.63
A31: 59012784 | B31: Pillar® G Intrinsic® brand fungicide | C31: 30 lbs bag | D31: 110.63 | E31: 110.63 | F31: =VLOOKUP(A31,'Step 2 - Order Planner'!$C$34:$F$53,4,FALSE) -> 0 | G31: 0 | H31: 30 | I31: 3.687666667 | J31: 110.63
A32: 59026395 | B32: Pillar® SC Intrinsic brand fungicide | C32: 4 x 43.5 oz | D32: 891.75 | E32: 891.75 | F32: =VLOOKUP(A32,'Step 2 - Order Planner'!$C$34:$F$53,4,FALSE) -> 0 | G32: 0 | H32: =4*43.5 -> 174 | I32: 5.125 | J32: 891.75 | L32: <-- | M32: lawn care only
A33: 59018005 | B33: Pylex® herbicide | C33: 4 x 4 oz | D33: 1472 | E33: 1509.12 | F33: =VLOOKUP(A33,'Step 2 - Order Planner'!$C$34:$F$53,4,FALSE) -> 0 | G33: 0 | H33: 16 | I33: 92 | J33: 1472
A34: 59014427 | B34: Segment® II herbicide | C34: 2 x 2.5 gal | D34: 1625 | E34: NO CA | H34: 5 | I34: 325 | J34: 1625
A35: 59011057 | B35: Siesta® Fire Ant Bait | C35: 15 lbs | D35: 289.13 | E35: 289.13 | F35: =VLOOKUP(A35,'Step 2 - Order Planner'!$C$34:$F$53,4,FALSE) -> 0 | G35: 0 | H35: 15 | I35: 19.27533333 | J35: 289.13
A36: 59023753 | B36: Sultan® miticide | C36: 4 x 0.125 gal | D36: 725 | E36: 743.32 | F36: =VLOOKUP(A36,'Step 2 - Order Planner'!$C$34:$F$53,4,FALSE) -> 0 | G36: 0 | H36: =4*0.125 -> 0.5 | I36: 1450 | J36: 725
A37: 59014247 | B37: Tower® herbicide | C37: 2 x 2.5 gal | D37: 2100 | E37: 2145.7 | F37: =VLOOKUP(A37,'Step 2 - Order Planner'!$C$34:$F$53,4,FALSE) -> 0 | G37: 0 | H37: 5 | I37: 420 | J37: 2100
A38: 59013723 | B38: Turf Mark spray indicator | C38: 12 x 0.25 gal | H38: =12*0.25 -> 3 | I38: 0 | J38: 0
A39: 59013314 | B39: Turf Mark spray indicator | C39: 1 x 30 gal | H39: 30 | I39: 0 | J39: 0
A40: 59013417 | B40: Turf Mark spray indicator - blue | C40: 2 x 2.5 gal | H40: 5 | I40: 0 | J40: 0
A41: 59013486 | B41: Turf Mark spray indicator - green | C41: 2 x 2.5 gal | H41: 5 | I41: 0 | J41: 0 | L41: <-- | M41: Discontinued
A42: 59014680 | B42: Ventigra® insecticide | C42: 4 x 20 oz | D42: 1328 | E42: 1361.6 | F42: =VLOOKUP(A42,'Step 2 - Order Planner'!$C$34:$F$53,4,FALSE) -> 0 | G42: 0 | H42: =4*20 -> 80 | I42: 16.6 | J42: 1328
D43: =SUM(D11:D42) -> 15362.39 | E43: =SUM(E11:E42) -> 11237.41 | G43: =SUM(G11:G42) -> 0
E46: =11237.41-E43 -> 0

Sheet Coverage Reference (hidden)
A1: Calculator Acreage
A2: Acre Coverage | E2: 4 | F2: 5 | G2: 6 | H2: 7
A3: Product Name | B3: Article # | C3: Package Size | D3: Price/Case | E3: Low Rate | F3: Mid Rate | G3: Mid2 Rate | H3: High rate | K3: Low Rate | L3: Mid Rate | M3: High rate
A4: Aramax™ Intrinsic® Brand Fungicide | B4: 59026671 | C4: 2 x 2.5 gal | H4: =640/43.6 -> 14.67889908 | M4: =640/43.6 -> 14.67889908
A5: Emerald® Fungicide | B5: 59021463 | C5: 10 x .49 lb. | H5: 10 | K5: 13.9 | L5: 12 | M5: 10
A6: Emerald® Fungicide | B6: 59012825 | C6: 50 x .49 lb. | H6: 50 | K6: 69.3 | L6: 60 | M6: 50
A7: Encartis® fungicide | B7: 59014003 | C7: 2 x 2.5 gal | F7: 4.9 | G7: 4.2 | H7: 3.7 | K7: 99 | L7: 99 | M7: 99
A8: Honor® Intrinsic™ brand Fungicide | B8: 59012885 | C8: 1 x 36 lb | H8: 12 | K8: 24 | L8: 18 | M8: 12
A9: Honor® Intrinsic™ brand Fungicide | B9: 59012350 | C9: 6 x 3 lb | H9: 6 | K9: 12 | L9: 9 | M9: 6
A10: Insignia® SC Intrinsic™ brand Fungicide | B10: 59014135 | C10: 2 x 2.5 gal | H10: 21 | K10: 36.8 | L10: 28.9 | M10: 21
A11: Insignia® SC Intrinsic™ brand Fungicide | B11: 59014134 | C11: 4 x 30.5 oz | H11: 4 | K11: 7 | L11: 5.5 | M11: 4
A12: Lexicon® Intrinsic™ Brand Fungicide | B12: 59027998 | C12: 4 x 21 oz | H12: 4 | K12: 5.68 | L12: 4.84 | M12: 4
A13: Maxtima® Fungicide | B13: 59018087 | C13: 4 x26 oz | E13: 12 | F13: 6 | G13: 4 | H13: 3 | K13: 12 | L13: 6 | M13: 3
A14: Maxtima Fungicide | B14: 59018071 | C14: 2 x 2.5 gal | E14: 73.5 | F14: 36 | G14: 24.6 | H14: 18 | K14: 73.5 | L14: 36 | M14: 18
A15: Navicon® Intrinsic™ brand Fungicide | B15: 59018094 | C15: 4 x 37 fl oz | H15: 4 | L15: 5 | M15: 4
A16: Navicon Intrinsic™ brand Fungicide | B16: 59018095 | C16: 2 x 2.5 gal | H16: 17 | L16: 21 | M16: 17
A17: Pillar G Intrinsic™ | B17: 59017959 | C17: 15 lbs | K17: 0.11 | L17: 0.11 | M17: 0.11
A18: Pillar G Intrinsic™ | B18: 59012784 | C18: 30 lbs | K18: 0.22 | L18: 0.22 | M18: 0.22
A19: Xzemplar™ Fungicide | B19: 59013833 | C19: 2 x 114 oz | G19: 25 | H19: 20 | K19: 32.8 | L19: 24.95 | M19: 20
A20: Xzemplar™Fungicide | B20: 59014120 | C20: 4 x 11.4 oz | G20: 5 | H20: 4 | K20: 6.6 | L20: 5 | M20: 4
A23: Brand | B23: Rate | C23: Rate Level Above | E23: 43.5
A24: Aramax | B24: 43.6 oz
A25: Emerald | B25: ="8.0"&" "&F25 -> 8.0 oz | C25: All | D25: 0.18 | E25: =D25*$E$23 -> 7.83 | F25: oz | M25: =5*128 -> 640 | N25: =M25/43.6 -> 14.67889908
A26: Encartis | B26: Select Rate
A27: Encartis | B27: 130.5 fl oz | C27: 5
A28: Encartis | B28: 152.5 fl oz | C28: 6 | M28: =5*128 -> 640
A29: Encartis | B29: 174.0 fl oz | C29: 7 | M29: =M28/43.6 -> 14.67889908
A30: Honor | B30: ="48.0"&" "&F30 -> 48.0 oz | C30: All | D30: 1.1 | E30: =D30*$E$23 -> 47.85 | F30: oz
A31: Insignia | B31: =30.5&" "&F31 -> 30.5 oz | C31: All | D31: 0.7 | E31: =D31*$E$23 -> 30.45 | F31: oz
A32: Lexicon | B32: ="21.0"&" "&F32 -> 21.0 oz | C32: All | D32: 0.47 | E32: =D32*$E$23 -> 20.445 | F32: oz | M32: =0.07*M25 -> 44.8
A33: Navicon | B33: =37.5&" "&F33 -> 37.5 oz | C33: All | D33: 0.85 | E33: =D33*$E$23 -> 36.975 | F33: oz
A34: Maxtima | B34: Select Rate | M34: =0.07*M25 -> 44.8
A35: Maxtima | B35: =E35&" "&F35 -> 8.7 oz | C35: 4 | D35: 0.2 | E35: =D35*$E$23 -> 8.7 | F35: oz
A36: Maxtima | B36: 17.4 oz | C36: 5 | D36: 0.4 | E36: =D36*$E$23 -> 17.4 | F36: oz
A37: Maxtima | B37: 26.1 oz | C37: 6 | D37: 0.6 | E37: =D37*$E$23 -> 26.1 | F37: oz | M37: =640/43.6 -> 14.67889908
A38: Maxtima | B38: 34.8 oz | C38: 7 | D38: 0.8 | E38: =D38*$E$23 -> 34.8 | F38: oz
A39: Xzemplar | B39: Select Rate
A40: Xzemplar | B40: =E40&" "&F40 -> 9.135 oz | C40: 6 | D40: 0.21 | E40: =D40*$E$23 -> 9.135 | F40: oz
A41: Xzemplar | B41: 11.31 oz | C41: 7 | D41: 0.26 | E41: =D41*$E$23 -> 11.31 | F41: oz

Sheet Sheet1 (hidden)
B2: Design Your Own Program (DYOP) | G2: Across the Course Solutions (ACS)
B3: Qualifying Fungicide Purchase Level (DYOP) | C3: Earned Incentive % | E3: DYOP Brand Requirements | G3: Qualifying EOP Purchase Level (Excluding DYOP Fungicides) | H3: Earned Incentive %
C4: Oct. 1-31, 2024 | D4: Nov. 1-Dec. 6, 2024 | H4: Oct.1-Dec. 1, 2023
B5: $3,000-$7,999 (Par) | C5: 0.08 | D5: 0.04 | E5: One (1) Qualifying Brand | G5: $3,000-$7,999 | H5: 0.04
B6: $8,000-$19,999 (Birdie) | C6: 0.14 | D6: 0.06 | E6: Three (3) Qualifying Brands | G6: $8,000-$19,999 | H6: 0.06
B7: $20,000-$29,999 (Eagle) | C7: 17% (+12% on ACS brands) | D7: 9% (+12% on ACS brands) | E7: Three (3) Qualifying Brands | G7: $20,000+ | H7: 0.12
B8: $30,000-$39,999 (Albatross) | C8: 20% (+12% on ACS brands) | D8: 10% (+12% on ACS brands) | E8: Three (3) Qualifying Brands | G8: (Eagle, Albatross, Ace DYOP customers automatically qualify for this tier)
B9: $40,000+ (Ace) | C9: 24% (+12% on ACS brands) | D9: 12% (+12% on ACS Brands) | E9: Three (3) Qualifying Brands
B14: Agency Lawn Fungicides | C14: Earned Incentive % | E14: DYOP Brand Requirements | G14: Across the Lawn Solutions
C15: Oct. 1-31, 2024 | D15: Nov. 1-Dec. 6, 2024 | G15: Qualifying Purchase Level | H15: Earned Incentive %
B16: $3,000-$7,999 | C16: 0.08 | D16: 0.04 | E16: One (1) Qualifying Brand | H16: Oct.1-Dec. 1, 2023
B17: $8,000-$19,999 | C17: 0.14 | D17: 0.06 | E17: Three (3) Qualifying Brands | G17: $3,000-$7,999 | H17: 0.04
B18: $20,000-$29,999 | C18: 0.17 | D18: 0.09 | E18: Three (3) Qualifying Brands | G18: $8,000-$19,999 | H18: 0.06
B19: $30,000-$39,999 | C19: 0.2 | D19: 0.1 | E19: Three (3) Qualifying Brands | G19: $20,000+ | H19: 0.12
B20: $40,000+ | C20: 0.24 | D20: 0.12 | E20: Three (3) Qualifying Brands
